Workbook

Sheet info
B2: INCOMETAX 2022-23 SOFTWARE में आपका स्वागत है
B3: करणीय कार्य
B4: यह प्रोग्राम विशेषकर राजस्थान के सभी शिक्षा' विभाग के कर्मचारीगण हेतु सरल,सहज,एंव स्मार्ट तरीके से बनाया गया है
B5: 1 | C5: GA 55 SHEET
C6: दोस्तों सबसे पहले GA55 SHEET में YELLO SHELL में ENTRY करे
C7: इसके बाद मार्च माह का वेतन ENTER करे और आपसे संबधित जानकारी का चुनाव करे और आपका GA 55 तैयार है
C8: आयकर स्लैब का चयन करे
C9: कटौती में GPF,SIP,GPF LOAN,INCOMETAX इत्यादि की entry करे बाकी cell ऑटो जनरेट है BILL NO एंव TV NO MANUAL FEED करे
B10: 2 | C10: 7 PAY MATRIX CHART
C11: इस sheet को लॉक किया गया है आप अपना लेवल के अनुसार basic पे देख सकते है !
B12: 3 | C12: TAX CALCULATION
C13: यह sheet भी लॉक है आप OLD TAX REGIME और NEW TAX REGIME में आपके लिए कोनसी BETTER है का चुनाव कर सकते है
B14: 4 | C14: OLD TAX REGIME
C15: इस sheet में आयकर विभाग द्वारा जिस धारा की छूट GA 55 के अलावा है तो DARK cell में entry करे
B16: 5 | C16: NEW TAX REGIME
C17: इस sheet में आयकर विभाग द्वारा 70% प्रकार की छूट नहीं है केवल NPS कर्मचारी अंशदान की छूट ले सकता है
B18: 6 | C18: PAY SLIP
C19: यदि आपने GA55 कम्पलीट भर दिया है तो इसमें माह का चुनाव करके अपनी माहवार वेतन पर्ची print ले सकते है
B21: आपकी सुरक्षा ही मेरी उर्जा है अतः कोविड नियमो का पालन करे | F21: आप मेरा youtube चैनल भी देख और SUBSCRIBE और LIKE कर सकते है | L21: https://youtu.be/3yHQVnwH1W0
D23: दोस्तों यह PROGRAMME आपको कैसा लगा मेरी MAIL ID पर जरुर बताये
D24: आपका विजय कुमार प्रजापत अध्यापक
D25: राजकीय उच्च माध्यमिक विद्यालय आलनियावास तह. रियां बड़ी जिला- नागौर
G26: 9828120697 | I26: कृपया इस नम्बर पर केवल MASSAGE करे CALL नहीं करे
D27: मेरे प्रेरणास्रोत --- अश्विनीकुमारजी,किशन जी सेन,विष्णुजी शर्मा,मोहम्मद शरीफ जी,परमानन्द जी,हीरालाल जी जाट और आप
D28: कृपया मेरे अन्य सभी SOFTWARE एंव अन्य शैक्षिक उपयोगी जानकारी हेतु इन LINKS पर जाये | G28: http://www.rajsevak.com/VIJAY-KUMAR-PRAJAPAT-SOFTWARE/ | J28: http://www.ashwinisharma.com/p/vijay-kumar-excel-sheet-expert.html | N28: http://www.shalasugam.com/vijay-kumar-excel-expert/
D31: नोट-- यह programe आपकी सुविधा हेतु बनाया गया है एंव GA55 से TALLY करके बनाये औरआयकर विभाग के नियम ही अंतिम होंगे| | J31: https://rajteachers.net/vijay-kumar-prajapat | N31: यह software PC,LAPTOP एंव MOBILE पर भी USE कर सकते है मोबाइल में WPS जैसे APP हो एंव EDIT OPTION में प्रत्येक cell में entry करे
B33: KEEP YOUR FACE ALWAYS IN SUNSHINE | H33: ANY SUGGESTION AND QUERY PLS CONTACT ME | K33: MAIL ID- gupskalani@gmail.com

Sheet GA55
B1: आप आयकर गणना प्रपत्र पुराना लेना चाहते है तो DROPDOWN MENU में OLD अथवा नए के लिए new का चयन करे | | W1: OLD | X1: TAX | Y1: =IF(W1="OLD",'OLD TAX REGIME'!M56,'NEW TAX REGIME'!M57) -> 35219 | AY1: सबसे पहले मार्च basic डार्क cell में लिखे फिर SIP,SIL,GPF,LIC, GIL,IT की कटोती MANUAL मार्च22 से करे और PRINT करे
B2: क्या आप 01.01.2004 के बाद नियुक्त है तो DROPDOWN मेनू में YES अथवा NO का चयन करे| | W2: YES | X2: HRA | AC2: =IF(W2="yes",AB13,IF(W2="no",AC16)) -> 5541 | AM2: 1 | AN2: =W9 -> 42300 | AO2: 31 | AP2: =AN2/AO2*15 -> 20467.74194 | AQ2: =ROUND(AP2,0) -> 20468 | AR2: =ROUND(AQ2*17/100,0) -> 3480
B3: कर्मचारी का राज्य सेवा में प्रकार | I3: REGULAR | K3: क्या आपको बोनस मिला है तो YES अथवा NO का चयन करे | W3: YES | AF3: 0.08 | AM3: 2 | AN3: =D14 -> 42300 | AO3: 29 | AP3: =AN3/AO3*15 -> 21879.31034 | AQ3: =ROUND(AP3,0) -> 21879 | AR3: =ROUND(AQ3*17/100,0) -> 3719
B4: क्या आपको समर्पित अवकाश मिला है तो YES अथवा NO का चयन करे | P4: YES | Q4: किस माह में उठाया | W4: 4 | AC4: YES | AE4: ,uih,l | AF4: 0.16 | AM4: 3 | AN4: =D15 -> 42300 | AO4: 31 | AP4: 20467.74194 | AQ4: 20468 | AR4: 3480 | AV4: OLD
B5: क्या आपको विशेषयोग्यजन कर्मचारी भत्ता मिलता है| | L5: NO | M5: क्या आपको HRA की छूट देय है | W5: YES | X5: 0.09 | AE5: thih,Q | AM5: 4 | AN5: =D16 -> 42300 | AO5: 30 | AP5: 21150 | AQ5: 21150 | AR5: 3596 | AV5: NEW
B6: आपके DDO का नाम/PRICIPAL | F6: श्री करमा राम | W6: YES | AM6: 0 | AR6: 0
B7: OFFICE GOVT.SR.SEC.SCHOOL ALNIYAWAS DISTT.-NAGAUR | AC7: REGULAR | AD7: YES | AM7: 5 | AN7: =D17 -> 43600 | AO7: 31 | AP7: 21096.77419 | AQ7: 21097 | AR7: 3586 | BF7: OLD TAX REGIME
B8: वेतन एंव कर निर्धारण वर्ष 2022-23 | S8: आयकर स्लैब का चयन :- | W8: OLD TAX REGIME | AC8: PROBATION | AD8: NO | AE8: YES | AF8: surender | AG8: 2 | AJ8: GPF | AM8: 6 | AN8: 43600 | AO8: 30 | AP8: 21800 | AQ8: 21800 | AR8: 3706 | BF8: NEW TAX REGIME
B9: नाम कर्मचारी : | D9: VIJAY KUMAR PRAJAPAT | H9: पद : | I9: LECTURER | L9: लेवल : | M9: L-12 | N9: पेन न : | O9: QYPP0000J | T9: Basic Pay (IN MARCH) | W9: 42300 | AD9: =IF(AC4>="YES",(D13+E13)*10/100) -> 5541.3 | AE9: NO | AJ9: GPF04 | AM9: 7 | AN9: 43600 | AO9: 31 | AP9: 21096.77419 | AQ9: 21097 | AR9: =ROUND(AQ9*31/100,0) -> 6540 | BB9: ( OLD TAX REGIME )
B10: राज्य बीमा : | D10: 457858 | F10: जीपीएफ/एनपीएस: | I10: 45 | L10: बैंक ब्रांच | M10: STATE BANK OF INDIA RIYAN BARI | T10: Bank A/c : | W10: 61000000000 | AA10: =ROUND(W9-(W9*0.03),2) -> 41031 | AB10: =ROUND(AA10,-2) -> 41000 | AF10: =VLOOKUP(L5,B13:E24,3,0) ->  | AM10: 8 | AN10: 43600 | AO10: 31 | AP10: 21096.77419 | AQ10: 21097 | AR10: =ROUND(AQ10*31/100,0) -> 6540 | BB10: ( NEW TAX REGIME )
B11: आधार नम्बर : | D11: 333333333333 | H11: टेन नम्बर : | J11: JDHG00000H | M11: मोबाइल नम्बर : | P11: 9828120697 | T11: EMPLOYEE ID : | W11: RJNA0000000000 | AM11: 9 | AN11: =D20 -> 43600 | AO11: 30 | AP11: =AN11/AO11*15 -> 21800 | AQ11: =ROUND(AP11,0) -> 21800 | AR11: 6758 | BE11: =IF(W2="YES"," "," ") -> 
B12: S. NO. | C12: Months & Year | D12: Basic pay | E12: Dearness allowance | F12: H.R.A. | G12: Handicaped allowance | H12: Washing allowance | I12: other | J12: other1 | K12: Gross pay | L12: =IF(W2="YES","GPF4","GPF") -> GPF4 | M12: =IF(W2="YES","GPF04 LOAN","GPF LOAN") -> GPF04 LOAN | N12: RPMF/RGHS | O12: SIP | P12: SIL | Q12: LIC | R12: GIS | S12: OTHER DED.1 | T12: OTHER DED.2 | U12: Income tax | V12: Total ded. | W12: NET PAY | X12: Bill No. | Y12: TV. No. | AC12: =AA10/31*16 -> 21177.29032 | AF12: =AF10/31*15 ->  | AG12: =ROUND(AF12,0) ->  | AH12: =AF10/31*0 ->  | AM12: 10 | AN12: 43600 | AO12: 31 | AP12: 21096.77419 | AQ12: 21097 | AR12: 6540
B13: 1 | C13: 2022-03-01 | D13: =BA13 -> 42300 | E13: =IF($I$3="REGULAR",ROUND((D13*31/100),0),0) -> 13113 | F13: =IF($I$3="REGULAR",ROUND((D13*$X$5),0),0) -> 3807 | G13: =IF($L$5="yes",600,"") ->  | K13: =SUM(D13:J13) -> 59220 | L13: 2000 | M13: 0 | N13: =IF($W$2="no",$AJ$26,$AJ$26 ) -> 658 | O13: 7000 | P13: 0 | Q13: 100 | U13: 0 | V13: =SUM(L13:U13) -> 9758 | W13: =K13-V13 -> 49462 | X13: 111/1-4-20 | Y13: 45/4-4-2020 | AA13: =K13 -> 59220 | AB13: =ROUND(((D13+E13)*10/100),0) -> 5541 | AC13: =(AA10/31)*5 -> 6617.903226 | AD13: =ROUND(AC13,0) -> 6618 | AE13: TEACHER | AF13: 3 | AG13: B | AI13: =IF(W2="YES"," ",AJ25) ->  | AM13: 11 | AN13: 43600 | AO13: 30 | AP13: 21800 | AQ13: 21800 | AR13: 6758 | BA13: =W9 -> 42300
B14: 2 | C14: 2022-04-01 | D14: =BA14 -> 42300 | E14: =IF($I$3="REGULAR",ROUND((D14*34/100),0),0) -> 14382 | F14: =IF($I$3="REGULAR",ROUND((D14*$X$5),0),0) -> 3807 | G14: =IF($L$5="yes",600,"") ->  | K14: =SUM(D14:J14) -> 60489 | L14: =L13 -> 2000 | M14: =M13 -> 0 | N14: 658 | O14: =O13 -> 7000 | P14: =P13 -> 0 | Q14: =Q13 -> 100 | R14: 0 | U14: =U13 -> 0 | V14: =SUM(L14:U14) -> 9758 | W14: =K14-V14 -> 50731 | AA14: =K14 -> 60489 | AB14: =ROUND(((D14+E14)*10/100),0) -> 5668 | AC14: =(AA10/31)*3 -> 3970.741935 | AD14: =ROUND(AC14,0) -> 3971 | AE14: SR.TEACHER | AF14: 3 | AG14: B | AI14: =IF($W$3="YES"," ",AJ26) ->  | AM14: 12 | AN14: 43600 | AO14: 31 | AP14: 21096.77419 | AQ14: 21097 | AR14: 6540 | BA14: =W9 -> 42300
B15: 3 | C15: 2022-05-01 | D15: =BA15 -> 42300 | E15: =IF($I$3="REGULAR",ROUND((D15*34/100),0),0) -> 14382 | F15: 3807 | K15: 60489 | L15: 2000 | M15: 0 | N15: 658 | O15: =O14 -> 7000 | P15: 0 | Q15: 100 | U15: 0 | V15: =SUM(L15:U15) -> 9758 | W15: =K15-V15 -> 50731 | AA15: 60489 | AB15: 5668 | AC15: =(AA10/31)*2 -> 2647.16129 | AD15: 2647 | AE15: LECTURER | AF15: 5 | AG15: A | AI15: =IF(W4="YES"," ",AJ27) -> 330 | BA15: =BA14 -> 42300 | BY15: =D16 -> 42300
B16: 4 | C16: 2022-06-01 | D16: 42300 | E16: 14382 | F16: 3807 | K16: 60489 | L16: 2000 | M16: 0 | N16: 658 | O16: =O15 -> 7000 | P16: 0 | Q16: 100 | U16: 0 | V16: 9758 | W16: 50731 | AA16: 60489 | AB16: 5668 | AD16: A | AE16: HEADMASTER | AF16: 5 | AG16: A | AI16: =IF(W5="YES"," ",AJ28) ->  | BA16: =BA15 -> 42300 | BK16: Rates prescribed by the Government from March, 2018 | BY16: =D14 -> 42300 | BZ16: =BY16*34/100 -> 14382 | CA16: =BY16*31/100 -> 13113 | CB16: =BZ16-CA16 -> 1269 | CC16: =CB16*10/100 -> 126.9 | CD16: =CB16-CC16 -> 1142.1
B17: 5 | C17: 2022-07-01 | D17: 43600 | E17: =IF($I$3="REGULAR",ROUND((D17*34/100),0),0) -> 14824 | F17: 3924 | K17: 62348 | L17: 2000 | M17: 0 | N17: 658 | O17: =O16 -> 7000 | P17: 0 | Q17: =Q16 -> 100 | U17: 0 | V17: 9758 | W17: 52590 | AA17: 62348 | AB17: 5842 | AD17: A | AE17: PRINCIPAL | AF17: 5 | AG17: A | AI17: =IF(W7="YES"," ",AJ29) -> L-1 | AJ17: RPMF RATES | BA17: =IF(I3="REGULAR",ROUND(BA16+(BA16*0.03),-2),W9) -> 43600 | BY17: =D14 -> 42300 | BZ17: =BY17*34/100 -> 14382 | CA17: =BY17*31/100 -> 13113 | CB17: =BZ17-CA17 -> 1269 | CC17: =CB17*10/100 -> 126.9 | CD17: =CB17-CC17 -> 1142.1 | DK17: =F18-F17 -> 0
B18: 6 | C18: 2022-08-01 | D18: 43600 | E18: =IF($I$3="REGULAR",ROUND((D18*34/100),0),0) -> 14824 | F18: 3924 | K18: 62348 | L18: 2000 | M18: 0 | N18: 658 | O18: =O17 -> 7000 | P18: 0 | Q18: 100 | U18: =U17 -> 0 | V18: 9758 | W18: 52590 | AA18: 62348 | AB18: 5842 | AD18: B | AE18: PRABODHAK | AF18: 3 | AG18: B | AI18: =IF(W8="YES"," ",AJ31) -> L-3 | AJ18: PAY RANGE | AL18: 2017-10-01 | AM18: 2017-11-01 | AN18: 2019-04-01 | AO18: 2020-04-01 | BA18: =BA17 -> 43600 | BK18: Sl. No. | BL18: Pay drawn in Pay Matrix | BM18: Rate of Subscription in Rs. | BY18: =D14 -> 42300 | BZ18: 14382 | CA18: 13113 | CB18: 1269 | CC18: 126.9 | CD18: 1142.1
B19: 7 | C19: 2022-09-01 | D19: 43600 | E19: 14824 | F19: 3924 | K19: 62348 | L19: 2000 | M19: 0 | N19: 658 | O19: =O18 -> 7000 | P19: 0 | Q19: 100 | U19: 0 | V19: 9758 | W19: 52590 | Z19: =IF($AE$32="A",(AA19/30*2),IF($AE$32="B",(AA19/30*1),IF($AE$32="C",(AA19/30*0)))) ->  | AA19: =D19+E19+F19 -> 62348 | AB19: 5842 | AD19: B | AE19: LAB. ASSISTANT | AF19: 3 | AG19: B | AI19: L-4 | AJ19: UP TO 18000 | AL19: 205 | AM19: 210 | AN19: 242 | AO19: 265 | AP19: 242 | AQ19: 265 | AR19: 135 | AS19: 265 | BA19: =BA18 -> 43600 | BK19: 1 | BL19: Upto Rs. 23100/- | BM19: 1450 | BY19: 0 | BZ19: =BY19*31/100 -> 0 | CA19: =BY19*28/100 -> 0 | CB19: 0 | CC19: 0 | CD19: 0
B20: 8 | C20: 2022-10-01 | D20: 43600 | E20: 14824 | F20: 3924 | K20: =SUM(D20:J20) -> 62348 | L20: 2000 | M20: 0 | N20: 658 | O20: =O19 -> 7000 | P20: =P19 -> 0 | Q20: 100 | U20: 0 | V20: =SUM(L20:U20) -> 9758 | W20: 52590 | Z20: =IF($AE$32="A",(AA20/31*2),IF($AE$32="B",(AA20/31*1),IF($AE$32="C",(AA20/31*0)))) ->  | AA20: 62348 | AB20: 5842 | AD20: B | AE20: LIBRARIAN | AF20: 3 | AG20: B | AI20: L-5 | AJ20: 18001 TO 33500 | AL20: 341 | AM20: 349 | AN20: 402 | AO20: 440 | AP20: 402 | AQ20: 440 | AR20: 220 | AS20: 440 | BA20: 43600 | BK20: 2 | BL20: Rs. 23101/- to 28500/- | BM20: 1625 | CB20: =SUM(CB16:CB19) -> 3807 | CC20: =ROUND(SUM(CC17:CC19),0) -> 254 | CD20: =ROUND(SUM(CD17:CD19),0) -> 2284 | CE20: 1412 | CF20: =CD20-CE20 -> 872
B21: 9 | C21: 2022-11-01 | D21: 43600 | E21: =IF($I$3="REGULAR",ROUND((D21*38/100),0),0) -> 16568 | F21: 3924 | K21: 64092 | L21: 2000 | M21: 0 | N21: 658 | O21: =O20 -> 7000 | P21: 0 | Q21: =Q20 -> 100 | U21: 0 | V21: 9758 | W21: 54334 | Z21: =IF($AE$32="A",(AA21/30*2),IF($AE$32="B",(AA21/30*1),IF($AE$32="C",(AA21/30*0)))) ->  | AA21: 64092 | AB21: 6017 | AD21: B | AE21: A.A.O. | AF21: 3 | AG21: B | AI21: L-6 | AJ21: 33501 TO 54000 | AL21: 511 | AM21: 522 | AN21: 602 | AO21: 658 | AP21: 602 | AQ21: 658 | AR21: 330 | AS21: 658 | BA21: 43600 | BK21: 3 | BL21: Rs. 28501/- to 38500/- | BM21: 2100 | BY21: =D17 -> 43600 | BZ21: =BY21*38/100 -> 16568 | CA21: =BY21*34/100 -> 14824 | CB21: =BZ21-CA21 -> 1744
B22: 10 | C22: 2022-12-01 | D22: 43600 | E22: =IF($I$3="REGULAR",ROUND((D22*38/100),0),0) -> 16568 | F22: 3924 | K22: 64092 | L22: 2000 | M22: 0 | N22: 658 | O22: =O21 -> 7000 | P22: =P21 -> 0 | Q22: 100 | U22: 0 | V22: 9758 | W22: 54334 | AA22: 64092 | AB22: 6017 | AD22: B | AE22: SENIOR ASSISTANT | AF22: 3 | AG22: B | AI22: L-7 | AJ22: 54001 & ABOVE | AL22: 680 | AM22: 695 | AN22: 800 | AO22: 875 | AP22: 800 | AQ22: 875 | AR22: 440 | AS22: 875 | BA22: 43600 | BK22: 4 | BL22: Rs. 38501/- to 51500/- | BM22: 2850 | BY22: =D18 -> 43600 | BZ22: =BY22*38/100 -> 16568 | CA22: =BY22*34/100 -> 14824 | CB22: =BZ22-CA22 -> 1744
B23: 11 | C23: 2023-01-01 | D23: 43600 | E23: =IF($I$3="REGULAR",ROUND((D23*38/100),0),0) -> 16568 | F23: 3924 | K23: 64092 | L23: 2000 | M23: 0 | N23: 658 | O23: =O21 -> 7000 | P23: =P21 -> 0 | Q23: 100 | U23: 0 | V23: 9758 | W23: 54334 | AA23: 64092 | AB23: 6017 | AD23: C | AE23: JUNIOR ASSISTANT | AF23: 2 | AG23: C | AI23: L-8 | BA23: 43600 | BK23: 5 | BL23: Rs. 51501/- to 62000/- | BM23: 3575 | BY23: =D19 -> 43600 | BZ23: 16568 | CA23: 14824 | CB23: 1744
B24: 12 | C24: 2023-02-01 | D24: 43600 | E24: 16568 | F24: 3924 | K24: 64092 | L24: 2000 | M24: 0 | N24: 658 | O24: =O23 -> 7000 | P24: =P23 -> 0 | Q24: 100 | U24: 0 | V24: 9758 | W24: 54334 | Z24: =IF($AE$32="A",(AA24/28*2),IF($AE$32="B",(AA24/28*1),IF($AE$32="C",(AA24/28*0)))) ->  | AA24: 64092 | AB24: 6017 | AE24: OFFICE ASSISTANT | BA24: 43600 | BK24: 6 | BL24: Rs. 62001/- to 72000/- | BM24: 4200 | BY24: =D20 -> 43600 | BZ24: =BY24*38/100 -> 16568 | CA24: =BY24*34/100 -> 14824 | CB24: =BZ24-CA24 -> 1744
B25: 13 | C25: SURRENDER | D25: =IF(P4="yes",AN26,IF(P4>="No",0)) -> 21150 | E25: =IF(P4="YES",VLOOKUP(W4,SDA,6,0),0) -> 3596 | K25: 24746 | V25: 0 | W25: 24746 | AB25: 2475 | AJ25: =IF(18000>$W$9,AP19,IF(33500>$W$9,AP20,IF(54000>$W$9,AP21,IF(,54001<$W$9,AP22)))) -> 602 | AK25: =ISNUMBER(AJ25) -> TRUE | BK25: 7 | BL25: Rs. 72001/- to 80000/- | BM25: 4800 | CB25: =SUM(CB21:CB24) -> 6976
B26: 14 | C26: DA(JAN-MAR22) | E26: =CB20 -> 3807 | K26: =SUM(D26:J26) -> 3807 | L26: =K26 -> 3807 | T26: 0 | V26: 3807 | W26: 0 | AB26: 381 | AJ26: =IF(18000>W9,AQ19,IF(33500>W9,AQ20,IF(54000>W9,AQ21,IF(,54000>W9,AQ22)))) -> 658 | AK26: =ISNUMBER(AJ26) -> TRUE | AN26: =VLOOKUP(W4,AM2:AQ15,5,0) -> 21150 | BK26: 8 | BL26: Rs. 80001/- to 116000/- | BM26: 6150 | CB26: =CB24 -> 1744
B27: 15 | C27: DA(JULY-OCT22) | E27: =CB25 -> 6976 | K27: 6976 | L27: =CB27 -> 5232 | V27: 5232 | W27: 1744 | AB27: 698 | AD27: =W9*5/100*6 -> 12690 | AF27: =ROUND(AC13,0) -> 6618 | AG27: =ROUND(AC14,0) -> 3971 | AH27: =ROUND(AC15,0) -> 2647 | AJ27: =IF(18000>W9,AR19,IF(33500>W9,AR20,IF(54000>W9,AR21,IF(,54000<W9,AR22)))) -> 330 | BK27: 9 | BL27: Rs. 116001/- to 167000/- | BM27: 8900 | CB27: =CB25-CB24 -> 5232
B28: 16 | C28: BONUS | I28: =AD33 -> 6774 | K28: 6774 | L28: =ROUND(K28*25/100,0) -> 1694 | T28: 0 | V28: =SUM(L28:U28) -> 1694 | W28: =K28-V28 -> 5080 | AD28: =W9*5/100*2 -> 4230 | AU28: =K32+L32 -> 823483 | BK28: 10 | BL28: 167001/- and Above | BM28: 10500
B29: 17 | C29: SALARY ARREAR | K29: =SUM(D29:J29) -> 0 | V29: 0 | W29: 0 | AF29: PRINCIPAL | AG29: A | AH29: 5 | AJ29: L-1 | AK29: 700 | BX29: =K28/2 -> 3387
B30: 18 | C30: SALARY ARREAR | K30: =SUM(D30:J30) -> 0 | V30: 0 | W30: 0 | AJ30: L-2 | AK30: 700
B31: 19 | C31: SALARY ARREAR | K31: 0 | L31: =IF($W$2="yes",AB31,IF($W$2="no"," ")) -> 0 | V31: 0 | W31: 0 | AB31: 0 | AC31: =SUM(U25:U31) -> 0 | AF31: HEAD MASTER | AG31: A | AH31: 5 | AJ31: L-3 | AK31: 700
C32: TOTAL | D32: =SUM(D13:D31) -> 539150 | E32: =SUM(E13:E31) -> 196206 | F32: 46620 | G32: 0 | H32: 0 | I32: 6774 | J32: 0 | K32: 788750 | L32: =SUM(L13:L31) -> 34733 | M32: 0 | N32: 7896 | O32: =SUM(O13:O31) -> 84000 | P32: 0 | Q32: 1200 | R32: 0 | S32: 0 | T32: 0 | U32: =SUM(U13:U31) -> 0 | V32: =SUM(V13:V31) -> 127829 | W32: =SUM(W13:W31) -> 660921 | AD32: =IF(AE32="A",(W9/31*5),IF(AE32="B",(W9/31*3),IF(AE32="C",(W9/31*2)))) ->  | AE32: =VLOOKUP(J9,AF29:AH67,2,0) ->  | AF32: LECTURER (School Edu.) | AG32: A | AH32: 5 | AJ32: L-4 | AK32: 700
AB33: =AD33-AC33 -> 5080 | AC33: =ROUND(AD33*25/100,0) -> 1694 | AD33: =IF(W3="YES",6774,IF(W3="NO"," ")) -> 6774 | AF33: SENOIR TEACHER (II Gr.) | AG33: B | AH33: 3 | AJ33: L-5 | AK33: 700
AC34: =ROUND(AD33*20/100,0) -> 1355 | AD34: =IF(AE32="A",(AA19/31*2),IF(AE32="B",(AA19/31*1),IF(AE32="C",(AA19/31*0)))) ->  | AF34: SENOIR TEACHER (Ele.HM) | AG34: B | AH34: 3 | AJ34: L-6 | AK34: 700
AC35: =AC33-AC34 -> 339 | AF35: TEACHER (III Gr.) Level 2 | AG35: B | AH35: 3 | AJ35: L-7 | AK35: 700
C36: Signature of Employee | T36: Signature of DDO | AF36: TEACHER (III Gr.) Level 1 | AG36: B | AH36: 3 | AJ36: L-8 | AK36: 800
C37: =D9 -> VIJAY KUMAR PRAJAPAT | J37: vijay prajapat excel programmer9828120697 | T37: =F6 -> श्री करमा राम | AF37: PET (I Gr.) | AG37: A | AH37: 5 | AJ37: L-9 | AK37: 800
AF38: PET (II Gr.) | AG38: B | AH38: 3 | AJ38: L-10 | AK38: 1100
AF39: PET ( III Gr.) | AG39: B | AH39: 3 | AJ39: L-11 | AK39: 1100
AF40: SPECIAL TEACHER (III Gr.) Level 1 | AG40: B | AH40: 3 | AJ40: L-12 | AK40: 1400
AF41: SPECIAL TEACHER (III Gr.) Level 2 | AG41: B | AH41: 3 | AJ41: L-13 | AK41: 1400
AF42: LIBRARIAN ( I Gr.) | AG42: A | AH42: 5 | AJ42: L-14 | AK42: 1400
AF43: LIBRARIAN ( II Gr.) | AG43: B | AH43: 3 | AJ43: L-15 | AK43: 1800
AF44: LIBRARIAN ( III Gr.) | AG44: B | AH44: 3 | AJ44: L-16 | AK44: 2100
AF45: LAB. ASSISTANT (II Gr.) | AG45: B | AH45: 3 | AJ45: L-17 | AK45: 2100
AF46: LAB. ASSISTANT (II Gr.) | AG46: B | AH46: 3 | AJ46: L-18 | AK46: 2400
AF47: LAB BOY | AG47: C | AH47: 2 | AJ47: L-19 | AK47: 2400
AF48: COACH | AG48: A | AH48: 5 | AJ48: L-20 | AK48: 3000
AF49: A.A.O. | AG49: B | AH49: 3 | AJ49: L-21 | AK49: 3000
AF50: SENIOR ASSISTANT(UDC) | AG50: B | AH50: 3 | AJ50: L-22 | AK50: 4500
AF51: JUNIOR ASSISTANT (LDC) | AG51: B | AH51: 3 | AJ51: L-23 | AK51: 4500
AF52: OFFICE ASSISTANT ( PEON ) | AG52: C | AH52: 2 | AJ52: L-24 | AK52: 5000
AF53: PRABODHAK ( III Gr.) LEVEL 1 | AG53: B | AH53: 3
AF54: PRABODHAK ( III Gr.) LEVEL 2 | AG54: B | AH54: 3
AF55: PRABODHAK PET.( III Gr.) LEVEL 1 | AG55: B | AH55: 3
AG56: B | AH56: 3
AG57: C | AH57: 2
AG58: A | AH58: 5
AG59: A | AH59: 5
AG60: B | AH60: 3
AG61: B | AH61: 3
AG62: B | AH62: 3
AG63: A | AH63: 5
AG64: A | AH64: 5
AG65: B | AH65: 3

Sheet 7pay matrix chart
A1: SCHEDULE-1 PART-B RULE NO.5 VI & VII | Z1: SHEDULE IV (RULE NO. 16
A2: PAY MATRIX OF STATE GOVT. SERVANTS | Z2: FIX REMUNERATION FOR PROBATIONER-TRAINEE
A3: EXISTING R.P. BAND | B3: PB-1 5200-20000 | K3: PB -2 9300-34800 | O3: PB-3 15600-39100 | V3: PB -4 37400-67000 | Z3: S.NO. | AA3: EXITING G.P. | AB3: EXITING G.P.NO. | AC3: EXITING AMOUNT OF FIXED RENUANERATION | AD3: CORRESPONDING LEVEL | AE3: FIXED REMUNERATION (WEF 01-01-17)
A5: EXIST.G.P. | B5: 1700 | C5: 1750 | D5: 1900 | E5: 2000 | F5: 2400 | G5: 2400 | H5: 2400 | I5: 2800 | J5: 2800 | K5: 3600 | L5: 4200 | M5: 4800 | N5: 5400 | O5: 5400 | P5: 6000 | Q5: 6600 | R5: 6800 | S5: 7200 | T5: 7600 | U5: 8200 | V5: 8700 | W5: 8900 | X5: 9500 | Y5: 10000
A6: EXIST.G.P. | B6: 2 | C6: 3 | D6: 4 | E6: 5 | F6: 9 | G6: 9A | H6: 9B | I6: 10 | J6: 10A | K6: 11 | L6: 12 | M6: 14 | N6: 15 | O6: 15 | P6: 16 | Q6: 17 | R6: 18 | S6: 19 | T6: 20 | U6: 21 | V6: 22 | W6: 23 | X6: 23A | Y6: 24
A7: LEVELS‏‏‏‏- | B7: L-1 | C7: L-2 | D7: L-3 | E7: L-4 | F7: L-5 | G7: L-6 | H7: L-7 | I7: L-8 | J7: L-9 | K7: L-10 | L7: L-11 | M7: L-12 | N7: L-13 | O7: L-14 | P7: L-15 | Q7: L-16 | R7: L-17 | S7: L-18 | T7: L-19 | U7: L-20 | V7: L-21 | W7: L-22 | X7: L-23 | Y7: L-24
A8: CELL NO | Z8: 1 | AA8: 2 | AB8: 3 | AC8: 4 | AD8: 5 | AE8: 6
A9: 1 | B9: 17700 | C9: 17900 | D9: 18200 | E9: 19200 | F9: 20800 | G9: 21500 | H9: 22400 | I9: 26300 | J9: 28700 | K9: 33800 | L9: 37800 | M9: 44300 | N9: 53100 | O9: 56100 | P9: 60700 | Q9: 67300 | R9: 71000 | S9: 75300 | T9: 79900 | U9: 88900 | V9: 123100 | W9: 129700 | X9: 145800 | Y9: 148800 | Z9: 1 | AA9: 1700 | AB9: 2 | AC9: 6670 | AD9: L-1 | AE9: 12400
A10: 2 | B10: =ROUND(B9+(B9*0.03),-2) -> 18200 | C10: =ROUND(C9+(C9*0.03),-2) -> 18400 | D10: =ROUND(D9+(D9*0.03),-2) -> 18700 | E10: 19800 | F10: 21400 | G10: 22100 | H10: 23100 | I10: 27100 | J10: 29600 | K10: 34800 | L10: 38900 | M10: 45600 | N10: 54700 | O10: 57800 | P10: 62500 | Q10: 69300 | R10: 73100 | S10: 77600 | T10: 82300 | U10: 91600 | V10: 126800 | W10: 133600 | X10: 150200 | Y10: 153300 | Z10: 2 | AA10: 1750 | AB10: 3 | AC10: 7000 | AD10: L-2 | AE10: 12600
A11: 3 | B11: =ROUND(B10+(B10*0.03),-2) -> 18700 | C11: 19000 | D11: 19300 | E11: 20400 | F11: 22000 | G11: 22800 | H11: 23800 | I11: 27900 | J11: 30500 | K11: 35800 | L11: 40100 | M11: 47000 | N11: 56300 | O11: 59500 | P11: 64400 | Q11: 71400 | R11: 75300 | S11: 79900 | T11: 84800 | U11: 94300 | V11: 130600 | W11: 137600 | X11: 154700 | Y11: 157900 | Z11: 3 | AA11: 1900 | AB11: 4 | AC11: 7400 | AD11: L-3 | AE11: 12800
A12: 4 | B12: 19300 | C12: 19600 | D12: 19900 | E12: 21000 | F12: 22700 | G12: 23500 | H12: 24500 | I12: 28700 | J12: 31400 | K12: 36900 | L12: 41300 | M12: 48400 | N12: 58000 | O12: 61300 | P12: 66300 | Q12: 73500 | R12: 77600 | S12: 82300 | T12: 87300 | U12: 97100 | V12: 134500 | W12: 141700 | X12: 159300 | Y12: 162600 | Z12: 4 | AA12: 2000 | AB12: 5 | AC12: 7790 | AD12: L-4 | AE12: 13500
A13: 5 | B13: 19900 | C13: 20200 | D13: 20500 | E13: 21600 | F13: 23400 | G13: 24200 | H13: 25200 | I13: 29600 | J13: 32300 | K13: 38000 | L13: 42500 | M13: 49900 | N13: 59700 | O13: 63100 | P13: 68300 | Q13: 75700 | R13: 79900 | S13: 84800 | T13: 89900 | U13: 100000 | V13: 138500 | W13: 146000 | X13: 164100 | Y13: 167500 | Z13: 5 | AA13: 2400 | AB13: 9 | AC13: 7790 | AD13: L-5 | AE13: 14600
A14: 6 | B14: 20500 | C14: 20800 | D14: 21100 | E14: 22200 | F14: 24100 | G14: 24900 | H14: 26000 | I14: 30500 | J14: 33300 | K14: 39100 | L14: 43800 | M14: 51400 | N14: 61500 | O14: 65000 | P14: 70300 | Q14: 78000 | R14: 82300 | S14: 87300 | T14: 92600 | U14: 103000 | V14: 142700 | W14: 150400 | X14: 169000 | Y14: 172500 | Z14: 6 | AA14: 2400 | AB14: 9A | AC14: 8910 | AD14: L-6 | AE14: 15100
A15: 7 | B15: 21100 | C15: 21400 | D15: 21700 | E15: 22900 | F15: 24800 | G15: 25600 | H15: 26800 | I15: 31400 | J15: 34300 | K15: 40300 | L15: 45100 | M15: 52900 | N15: 63300 | O15: 67000 | P15: 72400 | Q15: 80300 | R15: 84800 | S15: 89900 | T15: 95400 | U15: 106100 | V15: 147000 | W15: 154900 | X15: 174100 | Y15: 177700 | Z15: 7 | AA15: 2400 | AB15: 9B | AC15: 8910 | AD15: L-7 | AE15: 15700
A16: 8 | B16: 21700 | C16: 22000 | D16: 22400 | E16: 23600 | F16: 25500 | G16: 26400 | H16: 27600 | I16: 32300 | J16: 35300 | K16: 41500 | L16: 46500 | M16: 54500 | N16: 65200 | O16: 69000 | P16: 74600 | Q16: 82700 | R16: 87300 | S16: 92600 | T16: 98300 | U16: 109300 | V16: 151400 | W16: 159500 | X16: 179300 | Y16: 183000 | Z16: 8 | AA16: 2800 | AB16: 10 | AC16: 11820 | AD16: L-8 | AE16: 18500
A17: 9 | B17: 22400 | C17: 22700 | D17: 23100 | E17: 24300 | F17: 26300 | G17: 27200 | H17: 28400 | I17: 33300 | J17: 36400 | K17: 42700 | L17: 47900 | M17: 56100 | N17: 67200 | O17: 71100 | P17: 76800 | Q17: 85200 | R17: 89900 | S17: 95400 | T17: 101200 | U17: 112600 | V17: 155900 | W17: 164300 | X17: 184700 | Y17: 188500 | Z17: 9 | AA17: 2800 | AB17: 10A | AC17: 11820 | AD17: L-9 | AE17: 20100
A18: 10 | B18: 23100 | C18: 23400 | D18: 23800 | E18: 25000 | F18: 27100 | G18: 28000 | H18: 29300 | I18: 34300 | J18: 37500 | K18: 44000 | L18: 49300 | M18: 57800 | N18: 69200 | O18: 73200 | P18: 79100 | Q18: 87800 | R18: 92600 | S18: 98300 | T18: 104200 | U18: 116000 | V18: 160600 | W18: 169200 | X18: 190200 | Y18: 194200 | Z18: 10 | AA18: 3600 | AB18: 11 | AC18: 13200 | AD18: L-10 | AE18: 23700
A19: 11 | B19: 23800 | C19: 24100 | D19: 24500 | E19: 25800 | F19: 27900 | G19: 28800 | H19: 30200 | I19: 35300 | J19: 38600 | K19: 45300 | L19: 50800 | M19: 59500 | N19: 71300 | O19: 75400 | P19: 81500 | Q19: 90400 | R19: 95400 | S19: 101200 | T19: 107300 | U19: 119500 | V19: 165400 | W19: 174300 | X19: 195900 | Y19: 200000 | Z19: 11 | AA19: 4200 | AB19: 12 | AC19: 14660 | AD19: L-11 | AE19: 26500
A20: 12 | B20: 24500 | C20: 24800 | D20: 25200 | E20: 26600 | F20: 28700 | G20: 29700 | H20: 31100 | I20: 36400 | J20: 39800 | K20: 46700 | L20: 52300 | M20: 61300 | N20: 73400 | O20: 77700 | P20: 83900 | Q20: 93100 | R20: 98300 | S20: 104200 | T20: 110500 | U20: 123100 | V20: 170400 | W20: 179500 | X20: 201800 | Y20: 206000 | Z20: 12 | AA20: 4800 | AB20: 14 | AC20: 17230 | AD20: L-12 | AE20: 31100
A21: 13 | B21: 25200 | C21: 25500 | D21: 26000 | E21: 27400 | F21: 29600 | G21: 30600 | H21: 32000 | I21: 37500 | J21: 41000 | K21: 48100 | L21: 53900 | M21: 63100 | N21: 75600 | O21: 80000 | P21: 86400 | Q21: =ROUND(Q20+(Q20*0.03),-2) -> 95900 | R21: 101200 | S21: 107300 | T21: 113800 | U21: 126800 | V21: 175500 | W21: 184900 | X21: 207900 | Y21: 212200 | Z21: 13 | AA21: 5400 | AB21: 15 | AC21: 22180 | AD21: L-14 | AE21: 39300
A22: 14 | B22: 26000 | C22: 26300 | D22: 26800 | E22: 28200 | F22: 30500 | G22: 31500 | H22: 33000 | I22: 38600 | J22: 42200 | K22: 49500 | L22: 55500 | M22: 65000 | N22: 77900 | O22: 82400 | P22: 89000 | Q22: 98800 | R22: 104200 | S22: 110500 | T22: 117200 | U22: 130600 | V22: 180800 | W22: 190400 | X22: 214100 | Y22: 218600 | Z22: 14 | AA22: 6000 | AB22: 16 | AC22: 24030 | AD22: L-15 | AE22: 42500
A23: 15 | B23: 26800 | C23: 27100 | D23: 27600 | E23: 29000 | F23: 31400 | G23: 32400 | H23: 34000 | I23: 39800 | J23: 43500 | K23: 51000 | L23: 57200 | M23: 67000 | N23: 80200 | O23: 84900 | P23: 91700 | Q23: 101800 | R23: 107300 | S23: 113800 | T23: 120700 | U23: 134500 | V23: 186200 | W23: 196100 | Z23: 15 | AA23: 6600 | AB23: 17 | AC23: 26670 | AD23: L-16 | AE23: 47200
A24: 16 | B24: 27600 | C24: 27900 | D24: 28400 | E24: 29900 | F24: 32300 | G24: 33400 | H24: 35000 | I24: 41000 | J24: 44800 | K24: 52500 | L24: 58900 | M24: 69000 | N24: 82600 | O24: 87400 | P24: 94500 | Q24: 104900 | R24: 110500 | S24: 117200 | T24: 124300 | U24: 138500 | V24: 191800 | W24: 202000 | Z24: 16 | AA24: 6800 | AB24: 18 | AC24: 28120 | AD24: L-17 | AE24: 49700
A25: 17 | B25: 28400 | C25: 28700 | D25: 29300 | E25: 30800 | F25: 33300 | G25: 34400 | H25: 36100 | I25: 42200 | J25: 46100 | K25: 54100 | L25: 60700 | M25: 71100 | N25: 85100 | O25: 90000 | P25: 97300 | Q25: 108000 | R25: 113800 | S25: 120700 | T25: 128000 | U25: 142700 | V25: 197600 | W25: 208100 | Z25: 17 | AA25: 7200 | AB25: 19 | AC25: 29840 | AD25: L-18 | AE25: 52800
A26: 18 | B26: 29300 | C26: 29600 | D26: 30200 | E26: 31700 | F26: 34300 | G26: 35400 | H26: 37200 | I26: 43500 | J26: 47500 | K26: 55700 | L26: 62500 | M26: 73200 | N26: 87700 | O26: 92700 | P26: 100200 | Q26: 111200 | R26: 117200 | S26: 124300 | T26: 131800 | U26: 147000 | V26: 203500 | Z26: 18 | AA26: 7600 | AB26: 20 | AC26: 31620 | AD26: L-19 | AE26: 56000
A27: 19 | B27: =ROUND(B26+(B26*0.03),-2) -> 30200 | C27: 30500 | D27: 31100 | E27: 32700 | F27: 35300 | G27: 36500 | H27: 38300 | I27: 44800 | J27: 48900 | K27: 57400 | L27: 64400 | M27: 75400 | N27: 90300 | O27: 95500 | P27: 103200 | Q27: 114500 | R27: 120700 | S27: 128000 | T27: 135800 | U27: 151400 | V27: GPF RATES | Z27: 19 | AA27: 8200 | AB27: 21 | AC27: 35180 | AD27: L-20 | AE27: 62300
A28: 20 | B28: 31100 | C28: 31400 | D28: 32000 | E28: 33700 | F28: 36400 | G28: 37600 | H28: 39400 | I28: 46100 | J28: 50400 | K28: 59100 | L28: 66300 | M28: 77700 | N28: 93000 | O28: 98400 | P28: 106300 | Q28: 117900 | R28: 124300 | S28: 131800 | T28: 139900 | U28: 155900 | V28: RANGE | X28: 2017-10-01 | Y28: 2018-03-01 | Z28: 20 | AA28: 8700 | AB28: 22 | AC28: 48710 | AD28: L-21 | AE28: 86200
A29: 21 | B29: 32000 | C29: 32300 | D29: 33000 | E29: 34700 | F29: 37500 | G29: 38700 | H29: 40600 | I29: 47500 | J29: 51900 | K29: 60900 | L29: 68300 | M29: 80000 | N29: 95800 | O29: 101400 | P29: 109500 | Q29: 121400 | R29: 128000 | S29: 135800 | T29: 144100 | U29: 160600 | V29: UPTO 23100 | X29: 500 | Y29: 14500 | Z29: 21 | AA29: 8900 | AB29: 23 | AC29: 51350 | AD29: L-22 | AE29: 90800
A30: 22 | B30: 33000 | C30: 33300 | D30: 34000 | E30: 35700 | F30: 38600 | G30: 39900 | H30: 41800 | I30: 48900 | J30: 53500 | K30: 62700 | L30: 70300 | M30: 82400 | N30: 98700 | O30: 104400 | P30: 112800 | Q30: 125000 | R30: 131800 | S30: 139900 | T30: 148400 | U30: 165400 | V30: 23101 TO 28500 | X30: 650 | Y30: 1625 | Z30: 22 | AA30: 9500 | AB30: 23A | AC30: 54120 | AD30: L-23 | AE30: 102100
A31: 23 | B31: 34000 | C31: 34300 | D31: 35000 | E31: 36800 | F31: 39800 | G31: 41100 | H31: 43100 | I31: 50400 | J31: 55100 | K31: 64600 | L31: 72400 | M31: 84900 | N31: 101700 | O31: 107500 | P31: 116200 | Q31: 128800 | R31: 135800 | S31: 144100 | T31: 152900 | U31: 170400 | V31: 28501 TO 38500 | X31: 1100 | Y31: 2100 | Z31: 23 | AA31: 10000 | AB31: 24 | AC31: 57820 | AD31: L-24 | AE31: 104200
A32: 24 | B32: 35000 | C32: 35300 | D32: 36100 | E32: 37900 | F32: 41000 | G32: 42300 | H32: 44400 | I32: 51900 | J32: 56800 | K32: 66500 | L32: 74600 | M32: 87400 | N32: 104800 | O32: 110700 | P32: 119700 | Q32: 132700 | R32: 139900 | S32: 148400 | T32: 157500 | U32: 175500 | V32: 38501 TO 51500 | X32: 1450 | Y32: 2850 | Z32: SI PREMIUM FROM SALARY
A33: 25 | B33: 36100 | C33: 36400 | D33: 37200 | E33: 39000 | F33: 42200 | G33: 43600 | H33: 45700 | I33: 53500 | J33: 58500 | K33: 68500 | L33: 76800 | M33: 90000 | N33: 107900 | O33: 114000 | P33: 123300 | Q33: 136700 | R33: 144100 | S33: 152900 | T33: 162200 | U33: 180800 | V33: 51501 TO 62000 | X33: 2100 | Y33: 3575 | Z33: PAY RANGE | AB33: 2018-03-01 | AC33: 2020-03-01
A34: 26 | B34: 37200 | C34: 37500 | D34: 38300 | E34: 40200 | F34: 43500 | G34: 44900 | H34: 47100 | I34: 55100 | J34: 60300 | K34: 70600 | L34: 79100 | M34: 92700 | N34: 111100 | O34: 117400 | P34: 127000 | Q34: 140800 | R34: 148400 | S34: 157500 | T34: 167100 | U34: 186200 | V34: 62001 TO 72000 | X34: 3300 | Y34: 4200 | Z34: UPTO 22000 | AB34: 500 | AC34: 800
A35: 27 | B35: 38300 | C35: 38600 | D35: 39400 | E35: 41400 | F35: 44800 | G35: 46200 | H35: 48500 | I35: 56800 | J35: 62100 | K35: 72700 | L35: 81500 | M35: 95500 | N35: 114400 | O35: 120900 | P35: 130800 | Q35: 145000 | R35: 152900 | S35: 162200 | T35: 172100 | U35: 191800 | V35: 72001 TO 80000 | X35: 4100 | Y35: 4800 | Z35: 22001 TO 28500 | AB35: 700 | AC35: 1200
A36: 28 | B36: 39400 | C36: 39800 | D36: 40600 | E36: 42600 | F36: 46100 | G36: 47600 | H36: 50000 | I36: 58500 | J36: 64000 | K36: 74900 | L36: 83900 | M36: 98400 | N36: 117800 | O36: 124500 | P36: 134700 | Q36: 149400 | R36: 157500 | S36: 167100 | T36: 177300 | U36: 197600 | V36: 80001 TO 116000 | X36: 5200 | Y36: 6150 | Z36: 28501TO 46500 | AB36: 1300 | AC36: 2200
A37: 29 | B37: 40600 | C37: 41000 | D37: 41800 | E37: 43900 | F37: 47500 | G37: 49000 | H37: 51500 | I37: 60300 | J37: 65900 | K37: =ROUND(K36+(K36*0.03),-2) -> 77100 | L37: 86400 | M37: 101400 | N37: 121300 | O37: 128200 | P37: 138700 | Q37: 153900 | R37: =ROUND(R36+(R36*0.03),-2) -> 162200 | S37: 172100 | T37: 182600 | U37: 203500 | V37: 116001 TO 16700 | X37: 5700 | Y37: 8900 | Z37: 46501 TO 72000 | AB37: 1800 | AC37: 3000
A38: 30 | B38: 41800 | C38: 42200 | D38: 43100 | E38: 45200 | F38: 48900 | G38: 50500 | H38: 53000 | I38: 62100 | J38: 67900 | K38: 79400 | L38: 89000 | M38: 104400 | N38: 124900 | O38: 132000 | P38: 142900 | Q38: 158500 | R38: 167100 | S38: 177300 | T38: 188100 | V38: ABOVE 116700 | X38: 6200 | Y38: 10500 | Z38: ABOVE 72000 | AB38: 3000 | AC38: 5000
A39: 31 | B39: 43100 | C39: 43500 | D39: 44400 | E39: 46600 | F39: 50400 | G39: 52000 | H39: 54600 | I39: 64000 | J39: 69900 | K39: 81800 | L39: 91700 | M39: 107500 | N39: 128600 | O39: 136000 | P39: 147200 | Q39: 163300 | R39: 172100 | S39: 182600 | T39: 193700 | V39: RPMF RATES | Z39: MAXIMUM | AB39: 4000 | AC39: 7000
A40: 32 | B40: 44400 | C40: 44800 | D40: 45700 | E40: 48000 | F40: 51900 | G40: 53600 | H40: 56200 | I40: 65900 | J40: 72000 | K40: 84300 | L40: 94500 | M40: 110700 | N40: 132500 | O40: 140100 | P40: 151600 | Q40: 168200 | R40: 177300 | S40: 188100 | T40: 199500 | V40: PAY RANGE | X40: 2017-10-01 | Y40: 2017-11-01 | Z40: 2018-04-01 | AA40: 2018-10-30 | AB40: 2019-04-01 | AC40: 2020-04-01
A41: 33 | B41: 45700 | C41: 46100 | D41: 47100 | E41: 49400 | F41: 53500 | G41: 55200 | H41: 57900 | I41: 67900 | J41: 74200 | K41: 86800 | L41: 97300 | M41: 114000 | N41: 136500 | O41: 144300 | P41: 156100 | Q41: 173200 | R41: 182600 | S41: 193700 | V41: UP TO 18000 | X41: 205 | Y41: 210 | Z41: 219 | AA41: 228 | AB41: 242 | AC41: 265
A42: 34 | B42: 47100 | C42: 47500 | D42: 48500 | E42: 50900 | F42: 55100 | G42: 56900 | H42: 59600 | I42: 69900 | J42: 76400 | K42: 89400 | L42: 100200 | M42: 117400 | N42: 140600 | O42: 148600 | P42: 160800 | Q42: 178400 | R42: 188100 | S42: 199500 | V42: 18001 TO 33500 | X42: 341 | Y42: 349 | Z42: 364 | AA42: 379 | AB42: 402 | AC42: 440
A43: 35 | B43: =ROUND(B42+(B42*0.03),-2) -> 48500 | C43: 48900 | D43: 50000 | E43: 52400 | F43: 56800 | G43: 58600 | H43: 61400 | I43: 72000 | J43: 78700 | K43: 92100 | L43: 103200 | M43: 120900 | N43: 144800 | O43: 153100 | P43: 165600 | Q43: 183800 | R43: 193700 | V43: 33501 TO 54000 | X43: 511 | Y43: 522 | Z43: 545 | AA43: 568 | AB43: 602 | AC43: 658
A44: 36 | B44: 50000 | C44: 50400 | D44: 51500 | E44: 54000 | F44: 58500 | G44: 60400 | H44: 63200 | I44: 74200 | J44: 81100 | K44: 94900 | L44: 106300 | M44: 124500 | N44: 149100 | O44: 157700 | P44: 170600 | Q44: 189300 | R44: 199500 | V44: 54001 & ABOVE | X44: 680 | Y44: 695 | Z44: 725 | AA44: 755 | AB44: 800 | AC44: 875
A45: 37 | B45: 51500 | C45: 51900 | D45: 53000 | E45: 55600 | F45: 60300 | G45: 62200 | H45: 65100 | I45: 76400 | J45: 83500 | K45: 97700 | L45: 109500 | M45: 128200 | N45: 153600 | O45: 162400 | P45: 175700 | Q45: 195000 | V45: D.A. RATES
A46: 38 | B46: 53000 | C46: 53500 | D46: 54600 | E46: 57300 | F46: 62100 | G46: 64100 | H46: 67100 | I46: 78700 | J46: 86000 | K46: 100600 | L46: 112800 | M46: 132000 | N46: 158200 | O46: 167300 | P46: 181000 | Q46: VIJAY KUMAR PRAJAPAT GSSS ALNIYAWAS GMAIL ID-gupskalani@gmail.com | V46: FROM | W46: 2017-01-01 | X46: 2017-07-01 | Y46: 2018-01-01 | Z46: 2018-07-01 | AA46: 2019-01-01 | AB46: 2019-07-01 | AC46: 2021-07-01 | AD46: 2020-07-01 | AE46: 2021-01-01
A47: 39 | B47: 54600 | C47: 55100 | D47: 56200 | E47: 59000 | F47: 64000 | G47: 66000 | H47: 69100 | I47: 81100 | J47: 88600 | K47: 103600 | L47: 116200 | M47: 136000 | N47: 162900 | O47: 172300 | P47: 186400 | V47: RATE | W47: 0.04 | X47: 0.05 | Y47: 0.07 | Z47: 0.09 | AA47: 0.12 | AB47: 0.17 | AC47: 0.28
A48: 40 | B48: =ROUND(B47+(B47*0.03),-2) -> 56200 | C48: 56800 | D48: 57900 | E48: 60800 | F48: 65900 | G48: 68000 | H48: 71200 | I48: 83500 | J48: 91300 | K48: 106700 | L48: 119700 | M48: 140100 | N48: 167800 | O48: 177500 | P48: 192000 | V48: GPF | W48: 2017-06-01 | X48: 2017-09-01 | Y48: 2018-02-01 | Z48: 2018-08-01 | AA48: 2019-02-01 | AB48: 2020-02-01

Sheet TAX CALCULATION
A1: ENTER DATA IN YELLOW TAB | D1: TAX CACULATION | J1: TAX SLAB ( YEAR 2021-22)
A2: ANNUAL GROSS SALARY | B2: ='GA55'!K32 -> 788750 | D2: OLD TAX REGIME | F2: NEW TAX REGIME ( OPTIONAL) | J2: SLAB | K2: OPTIONAL | L2: EXITING
A3: STANDARD DEDUCTION | B3: 50000 | D3: SLAB AMOUNT (OLD) | E3: TAX | F3: SLAB AMOUNT (NEW) | G3: TAX | K3: NEW | L3: OLD
A4: HRA | B4: 0 | D4: =IF($B$13>250000,250000,$B$13) -> 250000 | E4: =D4*L4 -> 0 | F4: =IF(B14>250000,250000,D13) -> 250000 | G4: =F4*K4 -> 0 | J4: 0-250000 | K4: 0 | L4: 0
A5: PT AND ENTERTAINMENT ALLOWANCE | B5: 0 | D5: =IF($B$13>500000,250000,$B$13-D4) -> 229017 | E5: =IF(B13<=500000,0,(D5*L5)) -> 0 | F5: =IF($B$14>500000,250000,($B$14-F4)) -> 250000 | G5: =IF(B14<=500000,0,F5*K5) -> 12500 | J5: 250001-500000 | K5: 0.05 | L5: 0.05
A6: GPF/NPS/GPF04 | B6: ='GA55'!L32 -> 34733 | D6: =IF($B$13>750000,250000,$B$13-D5-D4) -> 0 | E6: =ROUND(D6*L6,0) -> 0 | F6: =IF($B$14>750000,250000,($B$14-F5-F4)) -> 250000 | G6: =ROUND(F6*K6,0) -> 25000 | J6: 500001-750000 | K6: 0.1 | L6: 0.2
A7: HOM E LOAN ITEREST | D7: =IF($B$13>1000000,250000,$B$13-D6-D5-D4) -> 0 | E7: =ROUND(D7*L7,0) -> 0 | F7: =IF($B$14>1000000,250000,($B$14-F5-F6-F4)) -> 4017 | G7: =ROUND(F7*K7,0) -> 603 | J7: 750001-1000000 | K7: 0.15 | L7: 0.2
A8: DEDUCTION OG US 80C | B8: 150000 | D8: =IF($B$13>1250000,250000,$B$13-D7-D6-D5-D4) -> 0 | E8: 0 | F8: =IF($B$14>1250000,250000,($B$14-F6-F7-F5-F4)) -> 0 | G8: 0 | J8: 1000001-1250000 | K8: 0.2 | L8: 0.3
A9: HEALTH INSURANCE US 80D | D9: =IF($B$13>1500000,250000,$B$13-D8-D7-D6-D5-D4) -> 0 | E9: 0 | F9: =IF($B$14>1250000,250000,($B$14-F7-F8-F6-F5-F4)) -> 0 | G9: 0 | J9: 1250001-1500000 | K9: 0.25 | L9: 0.3
A10: SAVING BANK INTEREST | B10: 0 | D10: =IF($B$13>1500000,$B$13-1500000,0) -> 0 | E10: 0 | F10: =IF($B$14>1500000,$B$14-1500000,0) -> 0 | G10: 0 | J10: 1500000 & ABOVE | K10: 0.3 | L10: 0.3
A11: 80U | B11: 75000
A12: TOAL EXEMPTION & DEDUCTION | B12: =B3+B4+B5+B6+B7+B8+B9+B10+B11 -> 309733 | D12: TOTAL | E12: =ROUND(SUM(E4:E11),0) -> 0 | G12: =SUM(G4:G11) -> 38103
A13: TEXABLE INCOME for exiting slab | B13: =B2-B12 -> 479017 | D13: S.& EDU.TAX | E13: =ROUND(E12*4/100,0) -> 0 | F13: =-D18 -> 0 | G13: =ROUND(G12*4/100,0) -> 1524
A14: In new income tax nps exemption | B14: =B2-B6 -> 754017 | D14: =SUM(D4:D11) -> 479017 | E14: =ROUND(E12+E13,0) -> 0 | F14: =SUM(F4:F11) -> 754017 | G14: =ROUND((G12+G13),0) -> 39627
A15: पीले CELL में कटौती लिखे ध्यान रहे एक बार NEW TAX REGIME लेने पर आगामी वर्षों में यही रहेगा | D15: TOTAL TAX | E15: =ROUND(E14,0) -> 0 | F15: TOTAL TAX | G15: =ROUND(G14,0) -> 39627
D16: WHICH IS BETTER FOR YOU ?
D17: =IF(G15>E15,"OLD IS BETTER","NEW IS BETTER") -> OLD IS BETTER | E17: FOR | F17: ='GA55'!D9 -> VIJAY KUMAR PRAJAPAT
D22: =B2 -> 788750 | E22: =B13-250000 -> 229017 | H22: =B13 -> 479017 | I22: 250000 | J22: =H22-I22 -> 229017 | K22: =B2 -> 788750 | L22: 250000 | M22: =K22-L22 -> 538750
D23: =SUM(B3:B7) -> 84733 | G23: =IF(E5>=12500,"0",IF(E5>=12500,(E5-12500))) -> FALSE | H23: =J22 -> 229017 | I23: 250000 | J23: =H23-I23 -> -20983 | K23: =M22 -> 538750 | L23: 250000 | M23: =K23-L23 -> 288750
D24: =D22-D23 -> 704017 | K24: =M23 -> 288750 | L24: 250000 | M24: 38750
D25: =SUM(B8:B11) -> 225000 | L25: 250000 | M25: -250000
D26: =D24-D25 -> 479017 | E26: =B13-250000 -> 229017
D28: 0

Sheet OLD TAX REGIME
B1: ='GA55'!B7 -> OFFICE GOVT.SR.SEC.SCHOOL ALNIYAWAS DISTT.-NAGAUR
B2: आयकर गणना प्रपत्र 202-23 ( कर निर्धारण वर्ष 202-24) | K2: OLD TAX REGIME
B3: 1 | D3: नाम कर्मचारी | E3: ='GA55'!D9 -> VIJAY KUMAR PRAJAPAT | H3: पद | I3: ='GA55'!I9:K9 -> LECTURER | K3: PAN NO | L3: ='GA55'!O9 -> QYPP0000J
D4: Bank Ac.No.-- | F4: ='GA55'!W10 -> 61000000000 | I4: Name Of Bank : | K4: ='GA55'!M10 -> STATE BANK OF INDIA RIYAN BARI
B5: 2 | D5: कुल वेतन (कर योग्य सुविधाओ सहित NPS सहित ) | L5: Rs. | M5: ='GA55'!K32 -> 788750
B6: 3 | D6: ग्रह किराया धारा 10(13-I) के अंतर्गतएंव धारा 10(14) के अंतर्गतअन्यभत्ते जो करमुक्त हो | L6: Rs. | M6: 0
B7: 4 | D7: शेष (2-3) -WITH EXEMPT STANDARD DEDUCTION MAX. 50000 | L7: Rs. | M7: =M5-M6-50000 -> 738750
B8: 5 | D8: (i) मनोरंजन भत्ता धारा 16(i) के अंतर्गत ( अधिकतम सीमा रू 5000 ) | K8: 0 | L8: Rs.
D9: (ii) व्यवसाय कर धारा 16(ii) के अंतर्गत ( अधिकतम सीमा रू 5000 ) | K9: 0 | L9: Rs.
B10: 6 | D10: शेष (4-5) | L10: Rs. | M10: =M7-K8-K9 -> 738750
B11: 7 | D11: (अ) ग्रह सम्पति से आय (1) स्वंय के उपयोग में - शून्य | J11: (2) प्राप्त किराया रू | L11: Rs.
D12: (ब) घटाए | F12: किराये का 30% | H12: ग्रह ऋण पर ब्याज | J12: गृहकर | K12: योग 7 (ब) | L12: Rs.
F13: 0 | H13: 0 | J13: 0 | K13: =F13+H13+I13+J13+G13 -> 0 | L13: Rs.
B14: 8 | D14: बचत खाते पर ब्याज | F14: 0 | H14: 9 . अन्य आय | J14: 0
D15: कुल सकल आय | L15: Rs. | M15: =M10-K13+F14+J14 -> 738750
B16: 10 | C16: (A) | D16: Chapter VI A Deductions( max 150000) | L16: Rs.
C17: (i) | D17: ='GA55'!L12 -> GPF4 | F17: ='GA55'!L32 -> 34733 | G17: (x) | H17: FIXED DEPOSIT 5 YEAR | K17: 0 | L17: Rs.
C18: (ii) | D18: SI | F18: ='GA55'!O32 -> 84000 | G18: (xi) | H18: TUSION FEES | K18: 0 | L18: Rs.
C19: (iii) | D19: LIC ( from salary) | F19: ='GA55'!Q32 -> 1200 | G19: (xii) | H19: NPS CONTRIBUTION | K19: =M27-M28 -> 0 | L19: Rs.
C20: (iv) | D20: LIC ( by Self) | F20: 12000 | G20: (xiii) | H20: PENSION PLAN (US 80CCC) | K20: 0 | L20: Rs.
C21: (v) | D21: PPF | F21: 0 | G21: (xiv) | H21: DEFFERED ANNUTY | K21: 0 | L21: Rs.
C22: (vi) | D22: PLI | F22: 0 | G22: (xv) | H22: ULIP | K22: 0 | L22: Rs.
C23: (vii) | D23: NSC | F23: 0 | G23: (xvi) | H23: GIS | K23: ='GA55'!R14 -> 0 | L23: Rs.
C24: (viii) | D24: HBA Premium | F24: 0 | G24: (xvii) | H24: सुकन्या समृद्धि योजना | K24: 0 | L24: Rs.
C25: (ix) | D25: NSS | F25: 0 | G25: Total( I to xvii) | K25: =F17+F18+F19+F20+F22+F21+F23+F24+F25+K17+K18+K19+K20+K21+K22+K23+K24 -> 131933 | L25: Rs.
C26: अधिकतम कटोती की राशि 1.50 लाख रूपये तक | M26: =IF(K25<=150000,K25,150000) -> 131933
C27: धारा 80CCD(2) नियोक्ता द्वारा वेतन अंशदान की राशि ( अधिकतम वेतन का 10% ) पृथक से छूट | L27: Rs. | M27: 0
C28: धारा 80CCD(1B) नियोक्ता द्वारा नवीन पेंशन योजना में अतिरिक्त अंशदान की राशि ( अधिकतम 50000 ) पृथक से छूट | L28: Rs.
C29: योग 8 (अ + ब + स ) | L29: Rs. | M29: =M26+M27+M28 -> 131933
B30: अन्य कटौतियां (VI A)-US80D,US80DD,US80DDB,US80E,US80G,US80GG,80U,80TTA etc.
B31: 11 | C31: 1 | D31: धारा 80D - चिकित्सा बीमा प्रीमियम ( सामान्य 25000, वरिष्ठ नागरिक 50000 ) | E31: /kkjk 80D - fpfdRlk chek izhfe;e ¼lkekU; 25000]ofj"B ukxfjd 50000 | F31: /kkjk 80D - fpfdRlk chek izhfe;e ¼lkekU; 25000]ofj"B ukxfjd 50000 | G31: /kkjk 80D - fpfdRlk chek izhfe;e ¼lkekU; 25000]ofj"B ukxfjd 50000 | H31: /kkjk 80D - fpfdRlk chek izhfe;e ¼lkekU; 25000]ofj"B ukxfjd 50000 | I31: /kkjk 80D - fpfdRlk chek izhfe;e ¼lkekU; 25000]ofj"B ukxfjd 50000 | J31: /kkjk 80D - fpfdRlk chek izhfe;e ¼lkekU; 25000]ofj"B ukxfjd 50000 | K31: /kkjk 80D - fpfdRlk chek izhfe;e ¼lkekU; 25000]ofj"B ukxfjd 50000 | L31: Rs. | M31: 0
C32: 2 | D32: धारा 80DD - विशेष योग्यजन आश्रितों के चिकित्सा उपचार ( अधिकतम 75000), 80% विशेष योग्यजन 125000 | E32: /kkjk 80DD - fo'ks"k ;ksX;tu vkfJrksa ds fpfdRlk mipkj ¼vf/kdre 75000]80% fo'ks"k ;ksX;tu 125000 | F32: /kkjk 80DD - fo'ks"k ;ksX;tu vkfJrksa ds fpfdRlk mipkj ¼vf/kdre 75000]80% fo'ks"k ;ksX;tu 125000 | G32: /kkjk 80DD - fo'ks"k ;ksX;tu vkfJrksa ds fpfdRlk mipkj ¼vf/kdre 75000]80% fo'ks"k ;ksX;tu 125000 | H32: /kkjk 80DD - fo'ks"k ;ksX;tu vkfJrksa ds fpfdRlk mipkj ¼vf/kdre 75000]80% fo'ks"k ;ksX;tu 125000 | I32: /kkjk 80DD - fo'ks"k ;ksX;tu vkfJrksa ds fpfdRlk mipkj ¼vf/kdre 75000]80% fo'ks"k ;ksX;tu 125000 | J32: /kkjk 80DD - fo'ks"k ;ksX;tu vkfJrksa ds fpfdRlk mipkj ¼vf/kdre 75000]80% fo'ks"k ;ksX;tu 125000 | K32: /kkjk 80DD - fo'ks"k ;ksX;tu vkfJrksa ds fpfdRlk mipkj ¼vf/kdre 75000]80% fo'ks"k ;ksX;tu 125000 | L32: Rs. | M32: 0
C33: 3 | D33: धारा 80DDB -विशिष्ठ रोगों के चिकित्सा उपचार हेतु कटौती ( सामान्य 40000, वरिष्ठ नागरिक 100000 रुपये ) | E33: /kkjk 80DDB - fof'k"V jkxks ds fpfdRlk mipkj gsrq dVkSrh ¼lkekU; 40000]ofj"B ukxfjd 100000 | F33: /kkjk 80DDB - fof'k"V jkxks ds fpfdRlk mipkj gsrq dVkSrh ¼lkekU; 40000]ofj"B ukxfjd 100000 | G33: /kkjk 80DDB - fof'k"V jkxks ds fpfdRlk mipkj gsrq dVkSrh ¼lkekU; 40000]ofj"B ukxfjd 100000 | H33: /kkjk 80DDB - fof'k"V jkxks ds fpfdRlk mipkj gsrq dVkSrh ¼lkekU; 40000]ofj"B ukxfjd 100000 | I33: /kkjk 80DDB - fof'k"V jkxks ds fpfdRlk mipkj gsrq dVkSrh ¼lkekU; 40000]ofj"B ukxfjd 100000 | J33: /kkjk 80DDB - fof'k"V jkxks ds fpfdRlk mipkj gsrq dVkSrh ¼lkekU; 40000]ofj"B ukxfjd 100000 | K33: /kkjk 80DDB - fof'k"V jkxks ds fpfdRlk mipkj gsrq dVkSrh ¼lkekU; 40000]ofj"B ukxfjd 100000 | L33: Rs. | M33: 0
C34: 4 | D34: धारा 80E - उच्च शिक्षा हेतु ऋण पर ब्याज | E34: /kkjk 80E - mPp f'k{kk gsrq _.k ij C;kt | F34: /kkjk 80E - mPp f'k{kk gsrq _.k ij C;kt | G34: /kkjk 80E - mPp f'k{kk gsrq _.k ij C;kt | H34: /kkjk 80E - mPp f'k{kk gsrq _.k ij C;kt | I34: /kkjk 80E - mPp f'k{kk gsrq _.k ij C;kt | J34: /kkjk 80E - mPp f'k{kk gsrq _.k ij C;kt | K34: /kkjk 80E - mPp f'k{kk gsrq _.k ij C;kt | L34: Rs. | M34: 0
C35: 5 | D35: धारा 80G - धर्मार्थ संस्थाओं को दिए गए दान ( क श्रेणी 100% एंव ख श्रेणी 50 % ) | L35: Rs. | M35: 0
C36: 6 | D36: धारा 80U - स्थाई शारीरिक विशेष योग्यजन ( अधिकतम 75000, 80 % विशेष योग्यजन 125000 रूपये की छूट) | E36: /kkjk 80U - LFkkbZ 'kkjhfjd fo'ks"k ;ksX;tu ¼ vf/kdre 75000]80% fo'ks"k ;ksX;tu 125000) | F36: /kkjk 80U - LFkkbZ 'kkjhfjd fo'ks"k ;ksX;tu ¼ vf/kdre 75000]80% fo'ks"k ;ksX;tu 125000) | G36: /kkjk 80U - LFkkbZ 'kkjhfjd fo'ks"k ;ksX;tu ¼ vf/kdre 75000]80% fo'ks"k ;ksX;tu 125000) | H36: /kkjk 80U - LFkkbZ 'kkjhfjd fo'ks"k ;ksX;tu ¼ vf/kdre 75000]80% fo'ks"k ;ksX;tu 125000) | I36: /kkjk 80U - LFkkbZ 'kkjhfjd fo'ks"k ;ksX;tu ¼ vf/kdre 75000]80% fo'ks"k ;ksX;tu 125000) | J36: /kkjk 80U - LFkkbZ 'kkjhfjd fo'ks"k ;ksX;tu ¼ vf/kdre 75000]80% fo'ks"k ;ksX;tu 125000) | K36: /kkjk 80U - LFkkbZ 'kkjhfjd fo'ks"k ;ksX;tu ¼ vf/kdre 75000]80% fo'ks"k ;ksX;tu 125000) | L36: Rs.
C37: 7 | D37: धारा 80GGA - अनुमोदित वैज्ञानिक,सामाजिक,ग्रामीण विकास हेतु दिया गया दान | E37: /kkjk 80GGA - vuqekfnr oSKkfud]lkekftd]xzkeh.k fodkl gsrq fn;k x;k nku | F37: /kkjk 80GGA - vuqekfnr oSKkfud]lkekftd]xzkeh.k fodkl gsrq fn;k x;k nku | G37: /kkjk 80GGA - vuqekfnr oSKkfud]lkekftd]xzkeh.k fodkl gsrq fn;k x;k nku | H37: /kkjk 80GGA - vuqekfnr oSKkfud]lkekftd]xzkeh.k fodkl gsrq fn;k x;k nku | I37: /kkjk 80GGA - vuqekfnr oSKkfud]lkekftd]xzkeh.k fodkl gsrq fn;k x;k nku | J37: /kkjk 80GGA - vuqekfnr oSKkfud]lkekftd]xzkeh.k fodkl gsrq fn;k x;k nku | K37: /kkjk 80GGA - vuqekfnr oSKkfud]lkekftd]xzkeh.k fodkl gsrq fn;k x;k nku | L37: Rs. | M37: 0
C38: 8 | D38: धारा 80 TTA - बचत खाते के ब्याज पर छूट ( अधिकतम 10000 रूपये ) | E38: /kkjk 80GGA - vuqekfnr oSKkfud]lkekftd]xzkeh.k fodkl gsrq fn;k x;k nku | F38: /kkjk 80GGA - vuqekfnr oSKkfud]lkekftd]xzkeh.k fodkl gsrq fn;k x;k nku | G38: /kkjk 80GGA - vuqekfnr oSKkfud]lkekftd]xzkeh.k fodkl gsrq fn;k x;k nku | H38: /kkjk 80GGA - vuqekfnr oSKkfud]lkekftd]xzkeh.k fodkl gsrq fn;k x;k nku | I38: /kkjk 80GGA - vuqekfnr oSKkfud]lkekftd]xzkeh.k fodkl gsrq fn;k x;k nku | J38: /kkjk 80GGA - vuqekfnr oSKkfud]lkekftd]xzkeh.k fodkl gsrq fn;k x;k nku | K38: /kkjk 80GGA - vuqekfnr oSKkfud]lkekftd]xzkeh.k fodkl gsrq fn;k x;k nku | L38: Rs. | M38: 0
B39: कुल योग ( 1 से 8 तक ) | L39: Rs. | M39: =M31+M32+M33+M34+M35+M36+M37+M38 -> 0
B40: 12 | C40: कुल कटौती | L40: Rs. | M40: =M29+M39 -> 131933
B41: 13 | C41: कर योग्य आय | L41: Rs. | M41: =M15-M40 -> 606817
B42: 14 | C42: कुल आय की राशि का 10 के गुणांक में गणना | L42: Rs. | M42: =ROUND(M41,-1) -> 606820
B43: 15 | C43: सामान्य आयकर स्लैब | I43: आयकर योग्य राशि
C44: 0 - 2,50,000 | D44: 0-250000 | E44: 0-250000 | F44: 0-250000 | G44: 0-250000 | H44: 0 | I44: =IF($M$42>250000,250000,$M$42) -> 250000 | L44: Rs. | M44: =I44*H44 -> 0
C45: 2,50,001 - 5,00,000 | D45: 250001-500000 | E45: 250001-500000 | F45: 250001-500000 | G45: 250001-500000 | H45: 0.05 | I45: =IF($M$42>500000,250000,$M$42-I44) -> 250000 | L45: Rs. | M45: =I45*H45 -> 12500
C46: 5,00,001 - 10,00,000 | D46: 500001-750000 | E46: 500001-750000 | F46: 500001-750000 | G46: 500001-750000 | H46: 0.2 | I46: =IF($M$42>1000000,500000,$M$42-I44-I45) -> 106820 | L46: Rs. | M46: =I46*H46 -> 21364
C47: 10,00,001 - 12,50,000 | D47: 1000001-1250000 | E47: 1000001-1250000 | F47: 1000001-1250000 | G47: 1000001-1250000 | H47: 0.3 | I47: =IF($M$42>1250000,250000,$M$42-I46-I45-I44) -> 0 | L47: Rs. | M47: 0
C48: 12,50,001 - 15,00,000 | D48: 1250001-1500000 | E48: 1250001-1500000 | F48: 1250001-1500000 | G48: 1250001-1500000 | H48: 0.3 | I48: =IF($M$42>1500000,250000,$M$42-I47-I46-I45-I44) -> 0 | L48: Rs. | M48: 0
C49: Above 15,00,000 | D49: 1250001-1500000 | E49: 1250001-1500000 | F49: 1250001-1500000 | G49: 1250001-1500000 | H49: 0.3 | I49: =IF($M$42<1500000,0,$M$42-I48-I47-I46-I44-I45) -> 0 | L49: Rs. | M49: 0
B50: 16 | C50: योग आयकर | I50: =I44+I45+I46+I47+I48+I49 -> 606820 | L50: Rs. | M50: =M44+M45+M46+M47+M48+M49 -> 33864
B51: 17 | C51: धारा 87 (A) - ( 2.50 लाख से 5.00 लाख तक की कर योग्य आय पर अधिकतम छूट 12500 रूपये | L51: Rs. | M51: =IF(M42<=500000,M45,0) -> 0
B52: 18 | C52: छूट के पश्चात् कुल आयकर | L52: Rs. | M52: =M50-M51 -> 33864
B53: 19 | C53: शिक्षा उपकर 2% एंव उच्च शिक्षा के लिए अधिभार 2% TOTAL 4% | L53: Rs. | M53: =ROUND(M52*4%,0) -> 1355
B54: 20 | C54: कुल आयकर | L54: Rs. | M54: =M52+M53 -> 35219
B55: 21 | C55: राहत धारा 89 के तहत छूट | L55: Rs. | M55: 0
B56: 22 | C56: कुल शेष आयकर | L56: Rs. | M56: =M54-M55 -> 35219
B57: विभिन्न स्रोतों से हुई मासिक आयकर कटौती
C58: ='GA55'!C13 -> 2022-03-01 | F58: ='GA55'!U13 -> 0 | G58: ='GA55'!C19 -> 2022-09-01 | J58: ='GA55'!U19 -> 0 | L58: Rs. | M58: अन्य एरियर से कटौती
C59: ='GA55'!C14 -> 2022-04-01 | F59: ='GA55'!U14 -> 0 | G59: ='GA55'!C20 -> 2022-10-01 | J59: ='GA55'!U20 -> 0 | L59: Rs.
C60: ='GA55'!C15 -> 2022-05-01 | F60: ='GA55'!U15 -> 0 | G60: ='GA55'!C21 -> 2022-11-01 | J60: ='GA55'!U21 -> 0 | L60: Rs.
C61: ='GA55'!C16 -> 2022-06-01 | F61: ='GA55'!U16 -> 0 | G61: ='GA55'!C22 -> 2022-12-01 | J61: ='GA55'!U22 -> 0 | L61: Rs. | M61: =SUM('GA55'!U25:U31) -> 0
C62: ='GA55'!C17 -> 2022-07-01 | F62: ='GA55'!U17 -> 0 | G62: ='GA55'!C23 -> 2023-01-01 | J62: ='GA55'!U23 -> 0 | L62: Rs.
C63: ='GA55'!C18 -> 2022-08-01 | F63: ='GA55'!U18 -> 0 | G63: ='GA55'!C24 -> 2023-02-01 | J63: ='GA55'!U24 -> 0 | L63: Rs.
C64: कुल कटौती का योग | L64: Rs. | M64: =F58+F59+F60+F61+F62+F63+J58+J59+J60+J61+J62+J63+M61 -> 0
C65: Income tax Refundable | L65: Rs. | M65: =M64-M56 -> -35219
K68: हस्ताक्षर कर्मचारी/ अधिकारी

Sheet NEW TAX REGIME
B1: ='GA55'!B7 -> OFFICE GOVT.SR.SEC.SCHOOL ALNIYAWAS DISTT.-NAGAUR
B2: आयकर गणना प्रपत्र 2021-22 ( कर निर्धारण वर्ष 2022-23) | K2: NEW TAX REGIME
B3: 1 | D3: नाम कर्मचारी | E3: ='GA55'!D9 -> VIJAY KUMAR PRAJAPAT | H3: पद | I3: ='GA55'!J9 -> 0 | K3: PAN NO | L3: ='GA55'!O9 -> QYPP0000J
D4: Bank Ac.No.-- | F4: ='GA55'!W10 -> 61000000000 | I4: Name Of Bank : | K4: ='GA55'!M10 -> STATE BANK OF INDIA RIYAN BARI
B5: 2 | D5: कुल वेतन (कर योग्य सुविधाओ सहित NPS सहित ) | L5: Rs. | M5: ='GA55'!K32 -> 788750
B6: 3 | D6: ग्रह किराया धारा 10(13-I) के अंतर्गतएंव धारा 10(14) के अंतर्गतअन्यभत्ते जो करमुक्त हो | L6: Rs. | M6: 0
B7: 4 | D7: शेष (2-3) -WITH EXEMPT STANDARD DEDUCTION MAX. 50000 | L7: Rs. | M7: =M5-M6-50000 -> 738750
B8: 5 | D8: (i) मनोरंजन भत्ता धारा 16(i) के अंतर्गत ( अधिकतम सीमा रू 5000 ) | K8: 0 | L8: Rs.
D9: (ii) व्यवसाय कर धारा 16(ii) के अंतर्गत ( अधिकतम सीमा रू 5000 ) | K9: 0 | L9: Rs.
B10: 6 | D10: शेष (4-5) | L10: Rs. | M10: =M7-K8-K9 -> 738750
B11: 7 | D11: (अ) ग्रह सम्पति से आय (1) स्वंय के उपयोग में - शून्य | J11: (2) प्राप्त किराया रू | L11: Rs.
D12: (ब) घटाए | F12: किराये का 30% | H12: ग्रह ऋण पर ब्याज | J12: गृहकर | K12: योग 7 (ब) | L12: Rs.
F13: 0 | H13: 0 | J13: 0 | K13: =F13+H13+I13+J13+G13 -> 0 | L13: Rs.
D14: बचत खाते पर ब्याज | F14: 0 | H14: 9 . अन्य आय | J14: 0
D15: कुल सकल आय | L15: Rs. | M15: =M10-K13+F14+J14 -> 738750
B16: 10 | C16: (A) | D16: Chapter VI A Deductions( max 150000) | L16: Rs.
C17: (i) | D17: GPF | F17: ='GA55'!M32 -> 0 | G17: (x) | H17: FIXED DEPOSIT 5 YEAR | K17: 0 | L17: Rs.
C18: (ii) | D18: SI | F18: 0 | G18: (xi) | H18: TUSION FEES | K18: 0 | L18: Rs.
C19: (iii) | D19: LIC ( from salary) | F19: 0 | G19: (xii) | H19: NPS CONTRIBUTION | K19: 0 | L19: Rs.
C20: (iv) | D20: LIC ( by Self) | F20: 0 | G20: (xiii) | H20: PENSION PLAN (US 80CCC) | K20: 0 | L20: Rs.
C21: (v) | D21: PPF | F21: 0 | G21: (xiv) | H21: DEFFERED ANNUTY | K21: 0 | L21: Rs.
C22: (vi) | D22: PLI | F22: 0 | G22: (xv) | H22: ULIP | K22: 0 | L22: Rs.
C23: (vii) | D23: NSC | F23: 0 | G23: (xvi) | H23: GIS | K23: 0 | L23: Rs.
C24: (viii) | D24: HBA Premium | F24: 0 | G24: (xvii) | H24: सुकन्या समृद्धि योजना | K24: 0 | L24: Rs.
C25: (ix) | D25: NSS | F25: 0 | G25: Total( I to xvii) | K25: 0 | L25: Rs.
C26: अधिकतम कटोती की राशि 1.50 लाख रूपये तक | M26: =IF(K25<=150000,K25,150000) -> 0
C27: धारा 80CCD(2) नियोक्ता द्वारा वेतन अंशदान की राशि ( अधिकतम वेतन का 10% ) पृथक से छूट | L27: Rs. | M27: =K19 -> 0
C28: धारा 80CCD(1B) नियोक्ता द्वारा नवीन पेंशन योजना में अतिरिक्त अंशदान की राशि ( अधिकतम 50000 ) पृथक से छूट | L28: Rs. | M28: =IF(K27<=150000,K27,150000) -> 0
C29: योग 8 (अ + ब + स ) | L29: Rs. | M29: =M26+M27+M28 -> 0
B30: अन्य कटौतियां (VI A)-US80D,US80DD,US80DDB,US80E,US80G,US80GG,80U,80TTA etc.
B31: 11 | C31: 1 | D31: धारा 80D - चिकित्सा बीमा प्रीमियम ( सामान्य 25000, वरिष्ठ नागरिक 50000 ) | E31: /kkjk 80D - fpfdRlk chek izhfe;e ¼lkekU; 25000]ofj"B ukxfjd 50000 | F31: /kkjk 80D - fpfdRlk chek izhfe;e ¼lkekU; 25000]ofj"B ukxfjd 50000 | G31: /kkjk 80D - fpfdRlk chek izhfe;e ¼lkekU; 25000]ofj"B ukxfjd 50000 | H31: /kkjk 80D - fpfdRlk chek izhfe;e ¼lkekU; 25000]ofj"B ukxfjd 50000 | I31: /kkjk 80D - fpfdRlk chek izhfe;e ¼lkekU; 25000]ofj"B ukxfjd 50000 | J31: /kkjk 80D - fpfdRlk chek izhfe;e ¼lkekU; 25000]ofj"B ukxfjd 50000 | K31: /kkjk 80D - fpfdRlk chek izhfe;e ¼lkekU; 25000]ofj"B ukxfjd 50000 | L31: Rs. | M31: 0
C32: 2 | D32: धारा 80DD - विशेष योग्यजन आश्रितों के चिकित्सा उपचार ( अधिकतम 75000), 80% विशेष योग्यजन 125000 | E32: /kkjk 80DD - fo'ks"k ;ksX;tu vkfJrksa ds fpfdRlk mipkj ¼vf/kdre 75000]80% fo'ks"k ;ksX;tu 125000 | F32: /kkjk 80DD - fo'ks"k ;ksX;tu vkfJrksa ds fpfdRlk mipkj ¼vf/kdre 75000]80% fo'ks"k ;ksX;tu 125000 | G32: /kkjk 80DD - fo'ks"k ;ksX;tu vkfJrksa ds fpfdRlk mipkj ¼vf/kdre 75000]80% fo'ks"k ;ksX;tu 125000 | H32: /kkjk 80DD - fo'ks"k ;ksX;tu vkfJrksa ds fpfdRlk mipkj ¼vf/kdre 75000]80% fo'ks"k ;ksX;tu 125000 | I32: /kkjk 80DD - fo'ks"k ;ksX;tu vkfJrksa ds fpfdRlk mipkj ¼vf/kdre 75000]80% fo'ks"k ;ksX;tu 125000 | J32: /kkjk 80DD - fo'ks"k ;ksX;tu vkfJrksa ds fpfdRlk mipkj ¼vf/kdre 75000]80% fo'ks"k ;ksX;tu 125000 | K32: /kkjk 80DD - fo'ks"k ;ksX;tu vkfJrksa ds fpfdRlk mipkj ¼vf/kdre 75000]80% fo'ks"k ;ksX;tu 125000 | L32: Rs. | M32: 0
C33: 3 | D33: धारा 80DDB -विशिष्ठ रोगों के चिकित्सा उपचार हेतु कटौती ( सामान्य 40000, वरिष्ठ नागरिक 100000 रुपये ) | E33: /kkjk 80DDB - fof'k"V jkxks ds fpfdRlk mipkj gsrq dVkSrh ¼lkekU; 40000]ofj"B ukxfjd 100000 | F33: /kkjk 80DDB - fof'k"V jkxks ds fpfdRlk mipkj gsrq dVkSrh ¼lkekU; 40000]ofj"B ukxfjd 100000 | G33: /kkjk 80DDB - fof'k"V jkxks ds fpfdRlk mipkj gsrq dVkSrh ¼lkekU; 40000]ofj"B ukxfjd 100000 | H33: /kkjk 80DDB - fof'k"V jkxks ds fpfdRlk mipkj gsrq dVkSrh ¼lkekU; 40000]ofj"B ukxfjd 100000 | I33: /kkjk 80DDB - fof'k"V jkxks ds fpfdRlk mipkj gsrq dVkSrh ¼lkekU; 40000]ofj"B ukxfjd 100000 | J33: /kkjk 80DDB - fof'k"V jkxks ds fpfdRlk mipkj gsrq dVkSrh ¼lkekU; 40000]ofj"B ukxfjd 100000 | K33: /kkjk 80DDB - fof'k"V jkxks ds fpfdRlk mipkj gsrq dVkSrh ¼lkekU; 40000]ofj"B ukxfjd 100000 | L33: Rs. | M33: 0
C34: 4 | D34: धारा 80E - उच्च शिक्षा हेतु ऋण पर ब्याज | E34: /kkjk 80E - mPp f'k{kk gsrq _.k ij C;kt | F34: /kkjk 80E - mPp f'k{kk gsrq _.k ij C;kt | G34: /kkjk 80E - mPp f'k{kk gsrq _.k ij C;kt | H34: /kkjk 80E - mPp f'k{kk gsrq _.k ij C;kt | I34: /kkjk 80E - mPp f'k{kk gsrq _.k ij C;kt | J34: /kkjk 80E - mPp f'k{kk gsrq _.k ij C;kt | K34: /kkjk 80E - mPp f'k{kk gsrq _.k ij C;kt | L34: Rs. | M34: 0
C35: 5 | D35: धारा 80G - धर्मार्थ संस्थाओं को दिए गए दान ( क श्रेणी 100% एंव ख श्रेणी 50 % ) | L35: Rs. | M35: =K35+I35 -> 0
C36: 6 | D36: धारा 80U - स्थाई शारीरिक विशेष योग्यजन ( अधिकतम 75000, 80 % विशेष योग्यजन 125000 रूपये की छूट) | E36: /kkjk 80U - LFkkbZ 'kkjhfjd fo'ks"k ;ksX;tu ¼ vf/kdre 75000]80% fo'ks"k ;ksX;tu 125000) | F36: /kkjk 80U - LFkkbZ 'kkjhfjd fo'ks"k ;ksX;tu ¼ vf/kdre 75000]80% fo'ks"k ;ksX;tu 125000) | G36: /kkjk 80U - LFkkbZ 'kkjhfjd fo'ks"k ;ksX;tu ¼ vf/kdre 75000]80% fo'ks"k ;ksX;tu 125000) | H36: /kkjk 80U - LFkkbZ 'kkjhfjd fo'ks"k ;ksX;tu ¼ vf/kdre 75000]80% fo'ks"k ;ksX;tu 125000) | I36: /kkjk 80U - LFkkbZ 'kkjhfjd fo'ks"k ;ksX;tu ¼ vf/kdre 75000]80% fo'ks"k ;ksX;tu 125000) | J36: /kkjk 80U - LFkkbZ 'kkjhfjd fo'ks"k ;ksX;tu ¼ vf/kdre 75000]80% fo'ks"k ;ksX;tu 125000) | K36: /kkjk 80U - LFkkbZ 'kkjhfjd fo'ks"k ;ksX;tu ¼ vf/kdre 75000]80% fo'ks"k ;ksX;tu 125000) | L36: Rs. | M36: 0
C37: 7 | D37: धारा 80GGA - अनुमोदित वैज्ञानिक,सामाजिक,ग्रामीण विकास हेतु दिया गया दान | E37: /kkjk 80GGA - vuqekfnr oSKkfud]lkekftd]xzkeh.k fodkl gsrq fn;k x;k nku | F37: /kkjk 80GGA - vuqekfnr oSKkfud]lkekftd]xzkeh.k fodkl gsrq fn;k x;k nku | G37: /kkjk 80GGA - vuqekfnr oSKkfud]lkekftd]xzkeh.k fodkl gsrq fn;k x;k nku | H37: /kkjk 80GGA - vuqekfnr oSKkfud]lkekftd]xzkeh.k fodkl gsrq fn;k x;k nku | I37: /kkjk 80GGA - vuqekfnr oSKkfud]lkekftd]xzkeh.k fodkl gsrq fn;k x;k nku | J37: /kkjk 80GGA - vuqekfnr oSKkfud]lkekftd]xzkeh.k fodkl gsrq fn;k x;k nku | K37: /kkjk 80GGA - vuqekfnr oSKkfud]lkekftd]xzkeh.k fodkl gsrq fn;k x;k nku | L37: Rs. | M37: 0
C38: 8 | D38: धारा 80 TTA - बचत खाते के ब्याज पर छूट ( अधिकतम 10000 रूपये ) | E38: /kkjk 80GGA - vuqekfnr oSKkfud]lkekftd]xzkeh.k fodkl gsrq fn;k x;k nku | F38: /kkjk 80GGA - vuqekfnr oSKkfud]lkekftd]xzkeh.k fodkl gsrq fn;k x;k nku | G38: /kkjk 80GGA - vuqekfnr oSKkfud]lkekftd]xzkeh.k fodkl gsrq fn;k x;k nku | H38: /kkjk 80GGA - vuqekfnr oSKkfud]lkekftd]xzkeh.k fodkl gsrq fn;k x;k nku | I38: /kkjk 80GGA - vuqekfnr oSKkfud]lkekftd]xzkeh.k fodkl gsrq fn;k x;k nku | J38: /kkjk 80GGA - vuqekfnr oSKkfud]lkekftd]xzkeh.k fodkl gsrq fn;k x;k nku | K38: /kkjk 80GGA - vuqekfnr oSKkfud]lkekftd]xzkeh.k fodkl gsrq fn;k x;k nku | L38: Rs. | M38: 0
B39: कुल योग ( 1 से 8 तक ) | L39: Rs. | M39: =M31+M32+M33+M34+M35+M36+M37+M38 -> 0
B40: 12 | C40: कुल कटौती | L40: Rs. | M40: =M29+M39 -> 0
B41: 13 | C41: कर योग्य आय | L41: Rs. | M41: =M15-M40 -> 738750
B42: 14 | C42: कुल आय की राशि का 10 के गुणांक में गणना | L42: Rs. | M42: =ROUND(M41,-1) -> 738750
B43: 15 | C43: सामान्य आयकर स्लैब | I43: आयकर योग्य राशि
B44: 16 | C44: 0 - 2,50,000 | D44: 0-250000 | E44: 0-250000 | F44: 0-250000 | G44: 0-250000 | H44: 0 | I44: =IF($M$42>250000,250000,$M$42) -> 250000 | L44: Rs. | M44: =I44*H44 -> 0
C45: 2,50,001 - 5,00,000 | D45: 250001-500000 | E45: 250001-500000 | F45: 250001-500000 | G45: 250001-500000 | H45: 0.05 | I45: =IF($M$42>500000,250000,$M$42-I44) -> 250000 | L45: Rs. | M45: =ROUND(I45*H45,0) -> 12500
C46: 5,00,001 - 7,50,000 | D46: 250001-500000 | E46: 250001-500000 | F46: 250001-500000 | G46: 250001-500000 | H46: 0.1 | I46: =IF($M$42>500000,250000,$M$42-I45) -> 250000 | L46: Rs. | M46: =ROUND(I46*H46,0) -> 25000
C47: 7,50,001 - 10,00,000 | D47: 500001-750000 | E47: 500001-750000 | F47: 500001-750000 | G47: 500001-750000 | H47: 0.15 | I47: =IF($M$42>1000000,500000,$M$42-I44-I45) -> 238750 | L47: Rs. | M47: =ROUND(I47*H47,0) -> 35813
C48: 10,00,001 - 12,50,000 | D48: 1000001-1250000 | E48: 1000001-1250000 | F48: 1000001-1250000 | G48: 1000001-1250000 | H48: 0.2 | I48: =IF($M$42>1250000,500000,$M$42-I45-I47-I44) -> 0 | L48: Rs. | M48: =I48*H48 -> 0
C49: 12,50,001 - 15,00,000 | D49: 1000001-1250000 | E49: 1000001-1250000 | F49: 1000001-1250000 | G49: 1000001-1250000 | H49: 0.25 | I49: =IF($M$42>1500000,250000,$M$42-I47-I48-I45-I44) -> 0 | L49: Rs. | M49: 0
C50: Above 15,00,000 | D50: 1250001-1500000 | E50: 1250001-1500000 | F50: 1250001-1500000 | G50: 1250001-1500000 | H50: 0.3 | I50: =IF($M$42<1500000,,$M$42-I48-I49-I47-I45-I44) -> 0 | L50: Rs. | M50: 0
B51: 17 | C51: योग आयकर | I51: =I45+I46+I47+I48+I49+I50 -> 738750 | L51: Rs. | M51: =SUM(M44:M50) -> 73313
B52: 18 | C52: धारा 87 (A) - ( 2.50 लाख से 5.00 लाख तक की कर योग्य आय पर अधिकतम छूट 12500 रूपये | L52: Rs. | M52: =IF(M42<=500000,M45,0) -> 0
B53: 19 | C53: छूट के पश्चात् कुल आयकर | L53: Rs. | M53: =M51-M52 -> 73313
B54: 20 | C54: शिक्षा उपकर 2% एंव उच्च शिक्षा के लिए अधिभार 2% TOTAL 4% | L54: Rs. | M54: =ROUND(M53*4%,0) -> 2933
B55: 21 | C55: कुल आयकर | L55: Rs. | M55: =ROUND(M53+M54,0) -> 76246
B56: 22 | C56: राहत धारा 89 के तहत छूट | L56: Rs. | M56: 0
B57: 23 | C57: कुल शेष आयकर | L57: Rs. | M57: =M55-M56 -> 76246
B58: विभिन्न स्रोतों से हुई मासिक आयकर कटौती
C59: ='OLD TAX REGIME'!C58:E58 -> 2022-03-01 | F59: ='GA55'!U13 -> 0 | G59: ='OLD TAX REGIME'!G58:I58 -> 2022-09-01 | J59: ='GA55'!U19 -> 0 | L59: Rs. | M59: अन्य एरियर से कटौती
C60: ='OLD TAX REGIME'!C59:E59 -> 2022-04-01 | F60: ='GA55'!U14 -> 0 | G60: ='OLD TAX REGIME'!G59:I59 -> 2022-10-01 | J60: ='GA55'!U20 -> 0 | L60: Rs.
C61: ='OLD TAX REGIME'!C60:E60 -> 2022-05-01 | F61: ='GA55'!U15 -> 0 | G61: ='OLD TAX REGIME'!G60:I60 -> 2022-11-01 | J61: ='GA55'!U21 -> 0 | L61: Rs.
C62: ='OLD TAX REGIME'!C61:E61 -> 2022-06-01 | F62: ='GA55'!U16 -> 0 | G62: ='OLD TAX REGIME'!G61:I61 -> 2022-12-01 | J62: ='GA55'!U22 -> 0 | L62: Rs. | M62: =SUM('GA55'!U25:U31) -> 0
C63: ='OLD TAX REGIME'!C62:E62 -> 2022-07-01 | F63: ='GA55'!U17 -> 0 | G63: ='OLD TAX REGIME'!G62:I62 -> 2023-01-01 | J63: ='GA55'!U23 -> 0 | L63: Rs.
C64: ='OLD TAX REGIME'!C63:E63 -> 2022-08-01 | F64: ='GA55'!U18 -> 0 | G64: ='OLD TAX REGIME'!G63:I63 -> 2023-02-01 | J64: ='GA55'!U24 -> 0 | L64: Rs.
C65: कुल कटौती का योग | L65: Rs. | M65: =F59+F60+F61+F62+F63+F64+J59+J60+J61+J62+J63+J64+M62 -> 0
C66: Income tax Refundable | L66: Rs. | M66: =M57-M65 -> 76246
K69: हस्ताक्षर कर्मचारी/ अधिकारी

Sheet PAY SLIP
B1: वेतन पर्ची
B2: Pay Slip
B3: DDO OFFICE : | D3: ='GA55'!B7 -> OFFICE GOVT.SR.SEC.SCHOOL ALNIYAWAS DISTT.-NAGAUR
B4: TV NO.& DATE : | D4: =VLOOKUP(E5,'GA55'!C13:Y31,23,0) -> 0 | G4: BILL NO. & DATE : | I4: =VLOOKUP(E5,'GA55'!C13:Y24,22,0) -> 0
D5: Month : | E5: 2022-10-01 | Q5: ='GA55'!C13 -> 2022-03-01
B6: कर्मचारी का नाम | G6: पदनाम | Q6: ='GA55'!C14 -> 2022-04-01
Q7: ='GA55'!C15 -> 2022-05-01
B8: NAME | C8: ='GA55'!D9 -> VIJAY KUMAR PRAJAPAT | G8: Designation : | I8: ='GA55'!I9:K9 -> LECTURER | Q8: ='GA55'!C16 -> 2022-06-01
Q9: ='GA55'!C17 -> 2022-07-01
B10: कर्मचारी पहचान संख्या | G10: बैंक खाता संख्या | Q10: ='GA55'!C18 -> 2022-08-01
Q11: ='GA55'!C19 -> 2022-09-01
B12: Emp. Id | D12: ='GA55'!W11 -> RJNA0000000000 | G12: A/C. No. | H12: ='GA55'!W10 -> 61000000000 | Q12: ='GA55'!C20 -> 2022-10-01
Q13: ='GA55'!C21 -> 2022-11-01
B14: जीपीएफ | G14: एसआई नम्बर | Q14: ='GA55'!C22 -> 2022-12-01
Q15: ='GA55'!C23 -> 2023-01-01
B16: GPF/GPF04 No. | D16: ='GA55'!I10 -> 45 | G16: SI No. | H16: ='GA55'!D10 -> 457858 | Q16: ='GA55'!C24 -> 2023-02-01
B18: बैंक शाखा
B20: Bank/ Branch | D20: ='GA55'!M10 -> STATE BANK OF INDIA RIYAN BARI
B22: INCOME | G22: DEDUCTION
B24: Basic | D24: =VLOOKUP(E5,ga,2,0) -> 43600 | G24: ='GA55'!L12 -> GPF4 | I24: =VLOOKUP($E$5,'GA55'!$C$13:$Y$24,10,0) -> 2000
B25: D.A. | D25: =VLOOKUP($E$5,'GA55'!C13:Y24,3,0) -> 14824 | G25: ='GA55'!M12 -> GPF04 LOAN | I25: =VLOOKUP($E$5,'GA55'!$C$13:$Y$24,11,0) -> 0
B26: H.R.A. | D26: =VLOOKUP($E$5,'GA55'!C13:Y24,4,0) -> 3924 | G26: ='GA55'!O12 -> SIP | I26: =VLOOKUP($E$5,'GA55'!$C$13:$Y$24,13,0) -> 7000
B27: Washing Allowance | D27: =VLOOKUP($E$5,'GA55'!C14:Y25,6,0) -> 0 | G27: ='GA55'!P12 -> SIL | I27: =VLOOKUP($E$5,'GA55'!$C$13:$Y$24,14,0) -> 0
B28: Handicap allowance | D28: =VLOOKUP($E$5,'GA55'!C15:Y26,6,0) -> 0 | G28: ='GA55'!Q12 -> LIC | I28: =VLOOKUP($E$5,'GA55'!$C$13:$Y$24,15,0) -> 100
B29: BONUS | D29: 0 | G29: ='GA55'!N12 -> RPMF/RGHS | I29: =VLOOKUP($E$5,'GA55'!$C$13:$Y$24,12,0) -> 658
B30: Other | D30: =VLOOKUP($E$5,'GA55'!C17:Y28,6,0) -> 0 | G30: ='GA55'!R12 -> GIS | I30: =VLOOKUP($E$5,'GA55'!$C$13:$Y$24,16,0) -> 0
B31: Other | D31: =VLOOKUP($E$5,'GA55'!C18:Y29,7,0) -> 0 | G31: ='GA55'!S12 -> OTHER DED.1 | I31: =VLOOKUP($E$5,'GA55'!$C$13:$Y$24,17,0) -> 0
G32: ='GA55'!T12 -> OTHER DED.2 | I32: =VLOOKUP($E$5,'GA55'!$C$13:$Y$24,18,0) -> 0
B33: TOTAL PAY | D33: =VLOOKUP(E5,'GA55'!C13:W24,9,0) -> 62348 | G33: ='GA55'!U12 -> Income tax | I33: =VLOOKUP($E$5,'GA55'!$C$13:$W$24,19,0) -> 0
G34: TOTAL DED.: | I34: =VLOOKUP($E$5,'GA55'!$C$13:$Y$24,20,0) -> 9758
D36: नियत वेतन
D37: NET PAY | F37: =VLOOKUP($E$5,'GA55'!$C$13:$Y$24,21,0) -> 52590 | H37: Rs.
B38: RUPEES IN WORDS | D38: =PROPER(SpellNumber(F37)) -> Fifty-Two Thousand Five Hundred Ninety
B43: Signature of Employee | G43: Signature of DDO
B44: ='GA55'!D9 -> VIJAY KUMAR PRAJAPAT | G44: ='GA55'!F6 -> श्री करमा राम
B46: Print Date: | D46: =NOW() -> 2022-11-26T23:00:32.170
